{"text_format":"1","workbook":"xlsx","n_sheets":7,"sheets":["Menú principal","0. Instructivo","1. Definir metas financieras","2. Presupuestar ingresos y gast","3. Cargar datos reales","Calculo Desvíos","4.Analizar desvíos y gráficos"],"not_rendered":{"charts":6,"images":15,"macros":1,"external_links":0,"defined_names":0,"comments":0,"pivot_tables":0},"unopened":[],"bounds":{"document_bytes":16777216,"sheet_cells":100000,"rows_first":2000,"rows_last":500,"rows_between":2000,"halvings":0,"cell_chars":16384,"cell_head_chars":4096},"cells_cut":0,"cells_raw":0,"read":"whole","date_system":"1900"}

{"sheet":"Menú principal","index":0,"n_rows":26,"n_cols":11,"rows_kept":26,"cut":false,"hidden":false,"merged":[[25,3,25,8],[23,5,23,6]]}
[]
[null,null,null,null,null,"              En colaboración para:",null,null,null,null,"     Diseñado por:"]
[]
[]
[]
[]
[]
[]
[null,null,"     HERRAMIENTA: PRESUPUESTO"]
[]
[]
[]
[]
[]
[]
[]
[]
[]
[]
[]
[]
[]
[]
[null,null,null,null,null,"Ver Instructivo"]
[]
[null,null,null,"Más información en : Cómo armar (y usar) un presupuesto "]

{"sheet":"0. Instructivo","index":1,"n_rows":29,"n_cols":11,"rows_kept":29,"cut":false,"hidden":false,"merged":[[28,5,28,8],[18,1,18,15],[20,1,20,15],[22,1,22,15],[24,1,24,15],[26,1,26,15],[3,5,3,8],[13,1,13,15],[14,1,14,15],[15,1,15,15],[16,1,16,15]]}
[]
[null,null,null,null,null,null,null,null,null,null,"                     Diseñado por:"]
[]
[]
[]
[]
[null,null,null,null,null,"    INSTRUCTIVO"]
[]
[null,"Menú Principal"]
[]
[]
[]
[]
[null,"El presupuesto es una lista estimada de los gastos e ingresos que se espera tener durante un período de tiempo. Por lo general, se arma como una serie de columnas de números que muestran mes a mes o año a año las estimaciones para los diferentes conceptos (presentados generalmente en filas). Puede realizarse en alguna planilla de cálculo de una computadora para hacer más simple su uso y actualización."]
[null,"El prespuesto personal o familiar funciona como una herramienta de planificación, ya que permite anticipar si el dinero alcanzará o sobrará y realizar los ajustes necesarios. También permite luego ir controlando los gastos al comparar lo real con lo planificado o prespuestado."]
[null,"Esta herramienta le permitirá planificar sus gastos e ingresos, proporcionándole un control y monitoreo más estricto de sus finanzas. La herramienta ha sido desarrollada de manera tal que a medida que una persona va elaborando su presupuesto, también va incorporando conceptos claves de finanzas personales  como fijación de metas financieras, proyección de gastos e ingresos futuros y cálculos de desvíos para saber periódicamentes si se está cumpliendo el prespuesto a lo largo del año."]
[null,"Para utilizar la calculadora de presupuesto haga \"click\" en \"Volver al Menú Principal\" y siga los 4 pasos allí enumerados \"presionando\" los botones en el orden establecido."]
[]
[null,"En cada sección, deberá completar únicamente las celdas pintadas en amarillo."]
[]
[null,"Paso 1: primero, deberá definir sus metas financieras, indicando cuánto quiere ahorrar y fijando gastos previstos para vacaciones y alguna compra importante."]
[]
[null,"Paso 2: luego, deberá completar los datos del presupuesto. Es decir, la proyección de gastos e ingresos para los próximos 12 meses. Para hacerlo, nuevamente complete las celdas pintadas en amarillo correspondiente al Mes 1. Luego la calculadora completará automáticamente los gastos, ingresos y otros conceptos, repitiendo para los otros 11 meses los valores ingresados para el Mes 1. Si desea cambiar el valor de un ingreso o gasto para algún mes en particular, sólo debe ingresar a la celda correspondiente y cambiar el número."]
[]
[null,"Paso 3: al final de cada mes ingrese a la calculadora sus ingresos y gastos reales. Cuando los valores que ingrese se encuentren por debajo de lo presupuestado, los números aparecerán en rojo, advirtiendo el desvío entre lo real y lo presupuestado."]
[]
[null,"Paso 4: En todo momento, usted podrá consultar el estado de su situación presupuestaria analizando los desvíos entre los valores prespuestados y los reales de manera acumulada a una fecha de análisis o en algún mes en particular. Para ello, se presentan diferentes gráficos que permiten evaluar mejor los desvíos y, en base a ello, determinar luego acciones para reencauzar el presupuesto, en caso de ser necesario."]
[]
[null,null,null,null,null,"Volver al Menu Principal"]

{"sheet":"1. Definir metas financieras","index":2,"n_rows":33,"n_cols":12,"rows_kept":33,"cut":false,"hidden":false,"merged":[[30,4,30,9],[32,5,32,6]]}
[]
[null,null,null,null,null,null,null,null,null,null,"                     Diseñado por:"]
[]
[]
[]
[]
[null,null,null,null,"    1. DEFINIR METAS FINANCIERAS "]
[]
["Menú Principal"]
[]
[]
[]
[]
[null,null,null,null,null,null," : Celdas a completar (Sí no tiene alguna meta en particular, dejar celda vacía)"]
[]
[null,null,null,null,"El plazo para alcanzar las siguientes metas financieras es de 12 meses calendario."]
[]
[null,null,null,"Meta 1:","Ahorro",null," de los ingresos",null,"Este % se aplica desde el Mes 1 al Mes 12."]
[null,null,null,null,null,"(Ejemplo 10 % de los ingresos totales)"]
[]
[null,null,null,"Meta 2:","Vacaciones",null," sueldos",null,"Las vacaciones ocurren en:",null,"Mes 1"]
[null,null,null,null,null,"(Ejemplo 1,5 sueldos)"]
[]
[null,null,null,"Meta 3:","Imprevistos",null," de los gastos",null,"Este % se aplica desde el Mes 1 al Mes 12."]
[null,null,null,null,null,"(Ejemplo 5 % de los gastos totales)"]
[]
[null,null,null,"Meta 4:","Compra importante",null,null,null,"La compra se realiza en:",null,"Mes 1"]
[null,null,null,null,null,"(Ejemplo 47.000)"]
[]
[]
[null,null,null,null,"Más información en : Cómo armar (y usar) un presupuesto ",null,null,null,null,null,"Para continuar con el siguiente paso"]
[null,null,null,null,null,null,null,null,null,null,null,"haga click aquí:"]
[null,null,null,null,null,"Ver Instructivo"]

{"sheet":"2. Presupuestar ingresos y gast","index":3,"n_rows":55,"n_cols":16,"rows_kept":55,"cut":false,"hidden":false,"merged":[[46,15,46,17],[13,4,13,9],[49,13,49,17],[13,10,13,11]]}
[]
[null,null,null,null,null,null,null,null,null,null,null,"                     Diseñado por:"]
[]
[]
[]
[]
[null,null,"     2. PRESUPUESTAR INGRESOS Y GASTOS"]
["                      Menú Principal"]
[]
[]
[]
[]
[]
[null,null," : Celdas a completar",null,"Más información en : Cómo armar (y usar) un presupuesto ",null,null,null,null,null,"Ver Instructivo"]
[]
["EFECTIVO DISPONIBLE AL INICIO"]
[null,"Mes 1","Mes 2","Mes 3","Mes 4","Mes 5","Mes 6","Mes 7","Mes 8","Mes 9","Mes 10","Mes 11","Mes 12","Totales"]
["INGRESOS",{"$f":"SUM(B19:B24)","v":0},0,0,0,0,0,0,0,0,0,0,0,{"$f":"SUM(B18:M18)","v":0}]
["Sueldo 1",null,{"$f":"+B19","v":0},{"$f":"+B19","v":0},{"$f":"+B19","v":0},{"$f":"+B19","v":0},{"$f":"+B19","v":0},{"$f":"+B19","v":0},{"$f":"+B19","v":0},{"$f":"+B19","v":0},{"$f":"+B19","v":0},{"$f":"+B19","v":0},{"$f":"+B19","v":0},{"$f":"SUM(B19:M19)","v":0},{"$f":"N19/$N$18","v":{"$error":"#DIV/0!"}}]
["Sueldo 2",null,{"$f":"+B20","v":0},{"$f":"+B20","v":0},{"$f":"+B20","v":0},{"$f":"+B20","v":0},{"$f":"+B20","v":0},{"$f":"+B20","v":0},{"$f":"+B20","v":0},{"$f":"+B20","v":0},{"$f":"+B20","v":0},{"$f":"+B20","v":0},{"$f":"+B20","v":0},{"$f":"SUM(B20:M20)","v":0},{"$f":"N20/$N$18","v":{"$error":"#DIV/0!"}}]
["Horas extras",null,0,0,0,0,0,0,0,0,0,0,0,0,{"$f":"N21/$N$18","v":{"$error":"#DIV/0!"}}]
["Ingresos por inversiones",null,0,0,0,0,0,0,0,0,0,0,0,0,{"$error":"#DIV/0!"}]
["Ingresos por alquileres",null,0,0,0,0,0,0,0,0,0,0,0,0,{"$error":"#DIV/0!"}]
["Otros ingresos",null,0,0,0,0,0,0,0,0,0,0,0,0,{"$error":"#DIV/0!"}]
[]
["GASTOS",{"$f":"SUM(B27:B36)","v":0},{"$f":"SUM(C27:C36)","v":0},0,0,0,0,0,0,0,0,0,0,{"$f":"SUM(B26:M26)","v":0}]
["Hogar",null,{"$f":"+B27","v":0},{"$f":"+B27","v":0},{"$f":"+B27","v":0},{"$f":"+B27","v":0},{"$f":"+B27","v":0},{"$f":"+B27","v":0},{"$f":"+B27","v":0},{"$f":"+B27","v":0},{"$f":"+B27","v":0},{"$f":"+B27","v":0},{"$f":"+B27","v":0},{"$f":"SUM(B27:M27)","v":0},{"$f":"N27/$N$26","v":{"$error":"#DIV/0!"}}]
["Salud",null,{"$f":"+B28","v":0},{"$f":"+B28","v":0},{"$f":"+B28","v":0},{"$f":"+B28","v":0},{"$f":"+B28","v":0},{"$f":"+B28","v":0},{"$f":"+B28","v":0},{"$f":"+B28","v":0},{"$f":"+B28","v":0},{"$f":"+B28","v":0},{"$f":"+B28","v":0},{"$f":"SUM(B28:M28)","v":0},{"$f":"N28/$N$26","v":{"$error":"#DIV/0!"}}]
["Educación",null,0,0,0,0,0,0,0,0,0,0,0,0,{"$error":"#DIV/0!"}]
["Transporte",null,0,0,0,0,0,0,0,0,0,0,0,0,{"$error":"#DIV/0!"}]
["Comida",null,0,0,0,0,0,0,0,0,0,0,0,0,{"$error":"#DIV/0!"}]
[" Ocio",null,0,0,0,0,0,0,0,0,0,0,0,0,{"$error":"#DIV/0!"}]
["Deudas",null,0,0,0,0,0,0,0,0,0,0,0,0,{"$error":"#DIV/0!"}]
["Seguros",null,0,0,0,0,0,0,0,0,0,0,0,0,{"$error":"#DIV/0!"}]
["Impuestos",null,0,0,0,0,0,0,0,0,0,0,0,0,{"$error":"#DIV/0!"}]
["Gastos varios",null,0,0,0,0,0,0,0,0,0,0,0,0,{"$error":"#DIV/0!"}]
[]
["IMPREVISTOS",{"$f":"'1. Definir metas financieras'!$F$24*B26","v":0},{"$f":"'1. Definir metas financieras'!$F$24*C26","v":0},{"$f":"'1. Definir metas financieras'!$F$24*D26","v":0},{"$f":"'1. Definir metas financieras'!$F$24*E26","v":0},{"$f":"'1. Definir metas financieras'!$F$24*F26","v":0},{"$f":"'1. Definir metas financieras'!$F$24*G26","v":0},{"$f":"'1. Definir metas financieras'!$F$24*H26","v":0},{"$f":"'1. Definir metas financieras'!$F$24*I26","v":0},{"$f":"'1. Definir metas financieras'!$F$24*J26","v":0},{"$f":"'1. Definir metas financieras'!$F$24*K26","v":0},{"$f":"'1. Definir metas financieras'!$F$24*L26","v":0},{"$f":"'1. Definir metas financieras'!$F$24*M26","v":0},{"$f":"SUM(B38:M38)","v":0}]
["VACACIONES",{"$f":"IF('1. Definir metas financieras'!$K$21=\"Mes 1\",($B$19+$B$20)*'1. Definir metas financieras'!$F$21,\"0\")","v":0},{"$f":"IF('1. Definir metas financieras'!$K$21=\"Mes 2\",($B$19+$B$20)*'1. Definir metas financieras'!$F$21,\"0\")","v":"0"},{"$f":"IF('1. Definir metas financieras'!$K$21=\"Mes 3\",($B$19+$B$20)*'1. Definir metas financieras'!$F$21,\"0\")","v":"0"},{"$f":"IF('1. Definir metas financieras'!$K$21=\"Mes 4\",($B$19+$B$20)*'1. Definir metas financieras'!$F$21,\"0\")","v":"0"},{"$f":"IF('1. Definir metas financieras'!$K$21=\"Mes 5\",($B$19+$B$20)*'1. Definir metas financieras'!$F$21,\"0\")","v":"0"},{"$f":"IF('1. Definir metas financieras'!$K$21=\"Mes 6\",($B$19+$B$20)*'1. Definir metas financieras'!$F$21,\"0\")","v":"0"},{"$f":"IF('1. Definir metas financieras'!$K$21=\"Mes 7\",($B$19+$B$20)*'1. Definir metas financieras'!$F$21,\"0\")","v":"0"},{"$f":"IF('1. Definir metas financieras'!$K$21=\"Mes 8\",($B$19+$B$20)*'1. Definir metas financieras'!$F$21,\"0\")","v":"0"},{"$f":"IF('1. Definir metas financieras'!$K$21=\"Mes 9\",($B$19+$B$20)*'1. Definir metas financieras'!$F$21,\"0\")","v":"0"},{"$f":"IF('1. Definir metas financieras'!$K$21=\"Mes 10\",($B$19+$B$20)*'1. Definir metas financieras'!$F$21,\"0\")","v":"0"},{"$f":"IF('1. Definir metas financieras'!$K$21=\"Mes 11\",($B$19+$B$20)*'1. Definir metas financieras'!$F$21,\"0\")","v":"0"},{"$f":"IF('1. Definir metas financieras'!$K$21=\"Mes 12\",($B$19+$B$20)*'1. Definir metas financieras'!$F$21,\"0\")","v":"0"},{"$f":"SUM(B39:M39)","v":0}]
["COMPRA IMPORTANTE",{"$f":"IF('1. Definir metas financieras'!$K$27=\"Mes 1\",'1. Definir metas financieras'!$F$27,\"0\")","v":0},{"$f":"IF('1. Definir metas financieras'!$K$27=\"Mes 2\",'1. Definir metas financieras'!$F$27,\"0\")","v":"0"},{"$f":"IF('1. Definir metas financieras'!$K$27=\"Mes 3\",'1. Definir metas financieras'!$F$27,\"0\")","v":"0"},{"$f":"IF('1. Definir metas financieras'!$K$27=\"Mes 4\",'1. Definir metas financieras'!$F$27,\"0\")","v":"0"},{"$f":"IF('1. Definir metas financieras'!$K$27=\"Mes 5\",'1. Definir metas financieras'!$F$27,\"0\")","v":"0"},{"$f":"IF('1. Definir metas financieras'!$K$27=\"Mes 6\",'1. Definir metas financieras'!$F$27,\"0\")","v":"0"},{"$f":"IF('1. Definir metas financieras'!$K$27=\"Mes 7\",'1. Definir metas financieras'!$F$27,\"0\")","v":"0"},{"$f":"IF('1. Definir metas financieras'!$K$27=\"Mes 8\",'1. Definir metas financieras'!$F$27,\"0\")","v":"0"},{"$f":"IF('1. Definir metas financieras'!$K$27=\"Mes 9\",'1. Definir metas financieras'!$F$27,\"0\")","v":"0"},{"$f":"IF('1. Definir metas financieras'!$K$27=\"Mes 10\",'1. Definir metas financieras'!$F$27,\"0\")","v":"0"},{"$f":"IF('1. Definir metas financieras'!$K$27=\"Mes 11\",'1. Definir metas financieras'!$F$27,\"0\")","v":"0"},{"$f":"IF('1. Definir metas financieras'!$K$27=\"Mes 12\",'1. Definir metas financieras'!$F$27,\"0\")","v":"0"},0]
[]
[]
["AHORRO",{"$f":"'1. Definir metas financieras'!$F$18*B18","v":0},{"$f":"'1. Definir metas financieras'!$F$18*C18","v":0},{"$f":"'1. Definir metas financieras'!$F$18*D18","v":0},{"$f":"'1. Definir metas financieras'!$F$18*E18","v":0},{"$f":"'1. Definir metas financieras'!$F$18*F18","v":0},{"$f":"'1. Definir metas financieras'!$F$18*G18","v":0},{"$f":"'1. Definir metas financieras'!$F$18*H18","v":0},{"$f":"'1. Definir metas financieras'!$F$18*I18","v":0},{"$f":"'1. Definir metas financieras'!$F$18*J18","v":0},{"$f":"'1. Definir metas financieras'!$F$18*K18","v":0},{"$f":"'1. Definir metas financieras'!$F$18*L18","v":0},{"$f":"'1. Definir metas financieras'!$F$18*M18","v":0},{"$f":"SUM(B43:M43)","v":0}]
[]
["EFECTIVO DISPONIBLE EN EL MES",{"$f":"+B16+B18-B26-B38-B43-B39-B40","v":0},{"$f":"+C16+C18-C26-C38-C43-C39-C40","v":0},{"$f":"+D16+D18-D26-D38-D43-D39-D40","v":0},{"$f":"+E16+E18-E26-E38-E43-E39-E40","v":0},0,0,0,0,0,0,0,0,0]
[]
["EFECTIVO DISPONIBLE ACUMULADO",{"$f":"+B45","v":0},{"$f":"+C45+B47","v":0},{"$f":"+D45+C47","v":0},0,0,0,0,0,0,0,0,{"$f":"+M45+L47","v":0},"Semáforo",{"$f":"M47","v":0},{"$f":"IF(O47>=0,\"Este presupuesto le permitirá alcanzar sus metas financieras.\",\"Este presupuesto NO le permitirá alcanzar sus metas financieras.\")","v":"Este presupuesto le permitirá alcanzar sus metas financieras."}]
[]
[null,null,null,null,null,null,null,null,null,"Para continuar con el siguiente paso",null,null,null,"Tips"]
[null,null,null,null,null,null,null,null,null,null,"Haga click aquí:",null,null,"El color de este semáforo le permitirá conocer si los ingresos y gastos presupuestados (es decir, los que usted planificó ganar o pagar) le permiten cumplir con las metas financieras que ha definido en el paso 1."]
[null,null,null,null,null,null,null,null,null,null,null,null,null,"Si el semáforo es rojo usted tiene dos opciones:"]
[null,null,null,null,null,null,null,null,null,null,null,null,null,"a) Modificar los valores de ingresos y gastos presupuestados"]
[null,null,null,null,null,null,null,null,null,null,null,null,null,"b) Volver al paso 1 y modificar sus metas financieras"]
[null,null,null,null,null,null,null,null,"Para volver al paso 1 y modificar sus metas financieras"]
[null,null,null,null,null,null,null,null,null,null,"haga click aquí"]

{"sheet":"3. Cargar datos reales","index":4,"n_rows":51,"n_cols":27,"rows_kept":51,"cut":false,"hidden":false,"merged":[[18,21,18,22],[18,23,18,24],[18,25,18,26],[18,11,18,12],[18,13,18,14],[18,15,18,16],[18,17,18,18],[18,19,18,20],[13,9,13,10],[13,4,13,8],[18,1,18,2],[18,3,18,4],[18,5,18,6],[18,7,18,8],[18,9,18,10]]}
[]
[null,null,null,null,null,null,null,null,"       Diseñado por:"]
[]
[]
[]
[]
[null,"3. INGRESAR DATOS REALES DE INGRESOS Y GASTOS"]
["              Menú Principal"]
[]
[]
[]
[]
[]
[null,null," : Celdas a completar",null,"Más información en : Cómo armar (y usar) un presupuesto ",null,null,null,null,"Ver Instructivo"]
[]
["EFECTIVO DISPONIBLE AL INICIO",{"$f":"'2. Presupuestar ingresos y gast'!B16","v":0},{"$f":"+B16","v":0}]
[null,1,null,2,null,3,null,4,null,5,null,6,null,7,null,8,null,9,null,10,null,11,null,12]
[null,null,1,null,2,null,3,null,4,null,5,null,6,null,7,null,8,null,9,null,10,null,11,null,12]
[null,"Mes 1",null,"Mes 2",null,"Mes 3",null,"Mes 4",null,"Mes 5",null,"Mes 6",null,"Mes 7",null,"Mes 8",null,"Mes 9",null,"Mes 10",null,"Mes 11",null,"Mes 12",null,"Total anual"]
[null,"Presupuesto","Real","Presupuesto","Real","Presupuesto","Real","Presupuesto","Real","Presupuesto","Real","Presupuesto","Real","Presupuesto","Real","Presupuesto","Real","Presupuesto","Real","Presupuesto","Real","Presupuesto","Real","Presupuesto","Real","Presupuesto","Real"]
["INGRESOS",{"$f":"+'2. Presupuestar ingresos y gast'!B18","v":0},{"$f":"SUM(C22:C27)","v":0},{"$f":"+'2. Presupuestar ingresos y gast'!C18","v":0},{"$f":"SUM(E22:E27)","v":0},{"$f":"+'2. Presupuestar ingresos y gast'!D18","v":0},{"$f":"SUM(G22:G27)","v":0},{"$f":"+'2. Presupuestar ingresos y gast'!E18","v":0},{"$f":"SUM(I22:I27)","v":0},{"$f":"+'2. Presupuestar ingresos y gast'!F18","v":0},{"$f":"SUM(K22:K27)","v":0},{"$f":"+'2. Presupuestar ingresos y gast'!G18","v":0},{"$f":"SUM(M22:M27)","v":0},{"$f":"+'2. Presupuestar ingresos y gast'!H18","v":0},{"$f":"SUM(O22:O27)","v":0},{"$f":"+'2. Presupuestar ingresos y gast'!I18","v":0},{"$f":"SUM(Q22:Q27)","v":0},{"$f":"+'2. Presupuestar ingresos y gast'!J18","v":0},{"$f":"SUM(S22:S27)","v":0},{"$f":"+'2. Presupuestar ingresos y gast'!K18","v":0},{"$f":"SUM(U22:U27)","v":0},{"$f":"+'2. Presupuestar ingresos y gast'!L18","v":0},{"$f":"SUM(W22:W27)","v":0},{"$f":"+'2. Presupuestar ingresos y gast'!M18","v":0},{"$f":"SUM(Y22:Y27)","v":0},{"$f":"+'2. Presupuestar ingresos y gast'!N18","v":0},{"$f":"SUM(AA22:AA27)","v":0}]
["Sueldo 1",{"$f":"+'2. Presupuestar ingresos y gast'!B19","v":0},null,{"$f":"+'2. Presupuestar ingresos y gast'!C19","v":0},null,{"$f":"+'2. Presupuestar ingresos y gast'!D19","v":0},null,{"$f":"+'2. Presupuestar ingresos y gast'!E19","v":0},null,{"$f":"+'2. Presupuestar ingresos y gast'!F19","v":0},null,{"$f":"+'2. Presupuestar ingresos y gast'!G19","v":0},null,{"$f":"+'2. Presupuestar ingresos y gast'!H19","v":0},null,{"$f":"+'2. Presupuestar ingresos y gast'!I19","v":0},null,{"$f":"+'2. Presupuestar ingresos y gast'!J19","v":0},null,{"$f":"+'2. Presupuestar ingresos y gast'!K19","v":0},null,{"$f":"+'2. Presupuestar ingresos y gast'!L19","v":0},null,{"$f":"+'2. Presupuestar ingresos y gast'!M19","v":0},null,{"$f":"+'2. Presupuestar ingresos y gast'!N19","v":0},{"$f":"Y22+W22+U22+S22+Q22+O22+M22+K22+I22+G22+E22+C22","v":0}]
["Sueldo 2",{"$f":"+'2. Presupuestar ingresos y gast'!B20","v":0},null,{"$f":"+'2. Presupuestar ingresos y gast'!C20","v":0},null,{"$f":"+'2. Presupuestar ingresos y gast'!D20","v":0},null,{"$f":"+'2. Presupuestar ingresos y gast'!E20","v":0},null,{"$f":"+'2. Presupuestar ingresos y gast'!F20","v":0},null,{"$f":"+'2. Presupuestar ingresos y gast'!G20","v":0},null,{"$f":"+'2. Presupuestar ingresos y gast'!H20","v":0},null,{"$f":"+'2. Presupuestar ingresos y gast'!I20","v":0},null,{"$f":"+'2. Presupuestar ingresos y gast'!J20","v":0},null,{"$f":"+'2. Presupuestar ingresos y gast'!K20","v":0},null,{"$f":"+'2. Presupuestar ingresos y gast'!L20","v":0},null,{"$f":"+'2. Presupuestar ingresos y gast'!M20","v":0},null,{"$f":"+'2. Presupuestar ingresos y gast'!N20","v":0},{"$f":"Y23+W23+U23+S23+Q23+O23+M23+K23+I23+G23+E23+C23","v":0}]
["Horas extras",{"$f":"+'2. Presupuestar ingresos y gast'!B21","v":0},null,{"$f":"+'2. Presupuestar ingresos y gast'!C21","v":0},null,{"$f":"+'2. Presupuestar ingresos y gast'!D21","v":0},null,{"$f":"+'2. Presupuestar ingresos y gast'!E21","v":0},null,{"$f":"+'2. Presupuestar ingresos y gast'!F21","v":0},null,{"$f":"+'2. Presupuestar ingresos y gast'!G21","v":0},null,{"$f":"+'2. Presupuestar ingresos y gast'!H21","v":0},null,{"$f":"+'2. Presupuestar ingresos y gast'!I21","v":0},null,{"$f":"+'2. Presupuestar ingresos y gast'!J21","v":0},null,{"$f":"+'2. Presupuestar ingresos y gast'!K21","v":0},null,{"$f":"+'2. Presupuestar ingresos y gast'!L21","v":0},null,{"$f":"+'2. Presupuestar ingresos y gast'!M21","v":0},null,{"$f":"+'2. Presupuestar ingresos y gast'!N21","v":0},0]
["Ingresos por inversiones",{"$f":"+'2. Presupuestar ingresos y gast'!B22","v":0},null,{"$f":"+'2. Presupuestar ingresos y gast'!C22","v":0},null,{"$f":"+'2. Presupuestar ingresos y gast'!D22","v":0},null,{"$f":"+'2. Presupuestar ingresos y gast'!E22","v":0},null,{"$f":"+'2. Presupuestar ingresos y gast'!F22","v":0},null,{"$f":"+'2. Presupuestar ingresos y gast'!G22","v":0},null,{"$f":"+'2. Presupuestar ingresos y gast'!H22","v":0},null,{"$f":"+'2. Presupuestar ingresos y gast'!I22","v":0},null,{"$f":"+'2. Presupuestar ingresos y gast'!J22","v":0},null,{"$f":"+'2. Presupuestar ingresos y gast'!K22","v":0},null,{"$f":"+'2. Presupuestar ingresos y gast'!L22","v":0},null,{"$f":"+'2. Presupuestar ingresos y gast'!M22","v":0},null,{"$f":"+'2. Presupuestar ingresos y gast'!N22","v":0},0]
["Ingresos por alquileres",{"$f":"+'2. Presupuestar ingresos y gast'!B23","v":0},null,{"$f":"+'2. Presupuestar ingresos y gast'!C23","v":0},null,{"$f":"+'2. Presupuestar ingresos y gast'!D23","v":0},null,{"$f":"+'2. Presupuestar ingresos y gast'!E23","v":0},null,{"$f":"+'2. Presupuestar ingresos y gast'!F23","v":0},null,{"$f":"+'2. Presupuestar ingresos y gast'!G23","v":0},null,{"$f":"+'2. Presupuestar ingresos y gast'!H23","v":0},null,{"$f":"+'2. Presupuestar ingresos y gast'!I23","v":0},null,{"$f":"+'2. Presupuestar ingresos y gast'!J23","v":0},null,{"$f":"+'2. Presupuestar ingresos y gast'!K23","v":0},null,{"$f":"+'2. Presupuestar ingresos y gast'!L23","v":0},null,{"$f":"+'2. Presupuestar ingresos y gast'!M23","v":0},null,{"$f":"+'2. Presupuestar ingresos y gast'!N23","v":0},0]
[{"$f":"'2. Presupuestar ingresos y gast'!A24","v":"Otros ingresos"},{"$f":"+'2. Presupuestar ingresos y gast'!B24","v":0},null,{"$f":"+'2. Presupuestar ingresos y gast'!C24","v":0},null,{"$f":"+'2. Presupuestar ingresos y gast'!D24","v":0},null,{"$f":"+'2. Presupuestar ingresos y gast'!E24","v":0},null,{"$f":"+'2. Presupuestar ingresos y gast'!F24","v":0},null,{"$f":"+'2. Presupuestar ingresos y gast'!G24","v":0},null,{"$f":"+'2. Presupuestar ingresos y gast'!H24","v":0},null,{"$f":"+'2. Presupuestar ingresos y gast'!I24","v":0},null,{"$f":"+'2. Presupuestar ingresos y gast'!J24","v":0},null,{"$f":"+'2. Presupuestar ingresos y gast'!K24","v":0},null,{"$f":"+'2. Presupuestar ingresos y gast'!L24","v":0},null,{"$f":"+'2. Presupuestar ingresos y gast'!M24","v":0},null,{"$f":"+'2. Presupuestar ingresos y gast'!N24","v":0},0]
[null,1,null,2,null,3,null,4,null,5,null,6,null,7,null,8,null,9,null,10,null,11,null,12]
[null,null,1,null,2,null,3,null,4,null,5,null,6,null,7,null,8,null,9,null,10,null,11,null,12]
["GASTOS",{"$f":"+'2. Presupuestar ingresos y gast'!B26","v":0},{"$f":"SUM(C31:C40)","v":0},{"$f":"+'2. Presupuestar ingresos y gast'!C26","v":0},{"$f":"SUM(E31:E40)","v":0},{"$f":"+'2. Presupuestar ingresos y gast'!D26","v":0},{"$f":"SUM(G31:G40)","v":0},{"$f":"+'2. Presupuestar ingresos y gast'!E26","v":0},{"$f":"SUM(I31:I40)","v":0},{"$f":"+'2. Presupuestar ingresos y gast'!F26","v":0},{"$f":"SUM(K31:K40)","v":0},{"$f":"+'2. Presupuestar ingresos y gast'!G26","v":0},{"$f":"SUM(M31:M40)","v":0},{"$f":"+'2. Presupuestar ingresos y gast'!H26","v":0},{"$f":"SUM(O31:O40)","v":0},{"$f":"+'2. Presupuestar ingresos y gast'!I26","v":0},{"$f":"SUM(Q31:Q40)","v":0},{"$f":"+'2. Presupuestar ingresos y gast'!J26","v":0},{"$f":"SUM(S31:S40)","v":0},{"$f":"+'2. Presupuestar ingresos y gast'!K26","v":0},{"$f":"SUM(U31:U40)","v":0},{"$f":"+'2. Presupuestar ingresos y gast'!L26","v":0},{"$f":"SUM(W31:W40)","v":0},{"$f":"+'2. Presupuestar ingresos y gast'!M26","v":0},{"$f":"SUM(Y31:Y40)","v":0},{"$f":"+'2. Presupuestar ingresos y gast'!N26","v":0},{"$f":"SUM(AA31:AA40)","v":0}]
[{"$f":"+'2. Presupuestar ingresos y gast'!A27","v":"Hogar"},{"$f":"+'2. Presupuestar ingresos y gast'!B27","v":0},null,{"$f":"+'2. Presupuestar ingresos y gast'!C27","v":0},null,{"$f":"+'2. Presupuestar ingresos y gast'!D27","v":0},null,{"$f":"+'2. Presupuestar ingresos y gast'!E27","v":0},null,{"$f":"+'2. Presupuestar ingresos y gast'!F27","v":0},null,{"$f":"+'2. Presupuestar ingresos y gast'!G27","v":0},null,{"$f":"+'2. Presupuestar ingresos y gast'!H27","v":0},null,{"$f":"+'2. Presupuestar ingresos y gast'!I27","v":0},null,{"$f":"+'2. Presupuestar ingresos y gast'!J27","v":0},null,{"$f":"+'2. Presupuestar ingresos y gast'!K27","v":0},null,{"$f":"+'2. Presupuestar ingresos y gast'!L27","v":0},null,{"$f":"+'2. Presupuestar ingresos y gast'!M27","v":0},null,{"$f":"+'2. Presupuestar ingresos y gast'!N27","v":0},{"$f":"Y31+W31+U31+S31+Q31+O31+M31+K31+I31+G31+E31+C31","v":0}]
[{"$f":"+'2. Presupuestar ingresos y gast'!A28","v":"Salud"},{"$f":"+'2. Presupuestar ingresos y gast'!B28","v":0},null,{"$f":"+'2. Presupuestar ingresos y gast'!C28","v":0},null,{"$f":"+'2. Presupuestar ingresos y gast'!D28","v":0},null,{"$f":"+'2. Presupuestar ingresos y gast'!E28","v":0},null,{"$f":"+'2. Presupuestar ingresos y gast'!F28","v":0},null,{"$f":"+'2. Presupuestar ingresos y gast'!G28","v":0},null,{"$f":"+'2. Presupuestar ingresos y gast'!H28","v":0},null,{"$f":"+'2. Presupuestar ingresos y gast'!I28","v":0},null,{"$f":"+'2. Presupuestar ingresos y gast'!J28","v":0},null,{"$f":"+'2. Presupuestar ingresos y gast'!K28","v":0},null,{"$f":"+'2. Presupuestar ingresos y gast'!L28","v":0},null,{"$f":"+'2. Presupuestar ingresos y gast'!M28","v":0},null,{"$f":"+'2. Presupuestar ingresos y gast'!N28","v":0},{"$f":"Y32+W32+U32+S32+Q32+O32+M32+K32+I32+G32+E32+C32","v":0}]
[{"$f":"+'2. Presupuestar ingresos y gast'!A29","v":"Educación"},{"$f":"+'2. Presupuestar ingresos y gast'!B29","v":0},null,{"$f":"+'2. Presupuestar ingresos y gast'!C29","v":0},null,{"$f":"+'2. Presupuestar ingresos y gast'!D29","v":0},null,{"$f":"+'2. Presupuestar ingresos y gast'!E29","v":0},null,{"$f":"+'2. Presupuestar ingresos y gast'!F29","v":0},null,{"$f":"+'2. Presupuestar ingresos y gast'!G29","v":0},null,{"$f":"+'2. Presupuestar ingresos y gast'!H29","v":0},null,{"$f":"+'2. Presupuestar ingresos y gast'!I29","v":0},null,{"$f":"+'2. Presupuestar ingresos y gast'!J29","v":0},null,{"$f":"+'2. Presupuestar ingresos y gast'!K29","v":0},null,{"$f":"+'2. Presupuestar ingresos y gast'!L29","v":0},null,{"$f":"+'2. Presupuestar ingresos y gast'!M29","v":0},null,{"$f":"+'2. Presupuestar ingresos y gast'!N29","v":0},{"$f":"Y33+W33+U33+S33+Q33+O33+M33+K33+I33+G33+E33+C33","v":0}]
[{"$f":"+'2. Presupuestar ingresos y gast'!A30","v":"Transporte"},{"$f":"+'2. Presupuestar ingresos y gast'!B30","v":0},null,{"$f":"+'2. Presupuestar ingresos y gast'!C30","v":0},null,{"$f":"+'2. Presupuestar ingresos y gast'!D30","v":0},null,{"$f":"+'2. Presupuestar ingresos y gast'!E30","v":0},null,{"$f":"+'2. Presupuestar ingresos y gast'!F30","v":0},null,{"$f":"+'2. Presupuestar ingresos y gast'!G30","v":0},null,{"$f":"+'2. Presupuestar ingresos y gast'!H30","v":0},null,{"$f":"+'2. Presupuestar ingresos y gast'!I30","v":0},null,{"$f":"+'2. Presupuestar ingresos y gast'!J30","v":0},null,{"$f":"+'2. Presupuestar ingresos y gast'!K30","v":0},null,{"$f":"+'2. Presupuestar ingresos y gast'!L30","v":0},null,{"$f":"+'2. Presupuestar ingresos y gast'!M30","v":0},null,{"$f":"+'2. Presupuestar ingresos y gast'!N30","v":0},0]
[{"$f":"+'2. Presupuestar ingresos y gast'!A31","v":"Comida"},{"$f":"+'2. Presupuestar ingresos y gast'!B31","v":0},null,{"$f":"+'2. Presupuestar ingresos y gast'!C31","v":0},null,{"$f":"+'2. Presupuestar ingresos y gast'!D31","v":0},null,{"$f":"+'2. Presupuestar ingresos y gast'!E31","v":0},null,{"$f":"+'2. Presupuestar ingresos y gast'!F31","v":0},null,{"$f":"+'2. Presupuestar ingresos y gast'!G31","v":0},null,{"$f":"+'2. Presupuestar ingresos y gast'!H31","v":0},null,{"$f":"+'2. Presupuestar ingresos y gast'!I31","v":0},null,{"$f":"+'2. Presupuestar ingresos y gast'!J31","v":0},null,{"$f":"+'2. Presupuestar ingresos y gast'!K31","v":0},null,{"$f":"+'2. Presupuestar ingresos y gast'!L31","v":0},null,{"$f":"+'2. Presupuestar ingresos y gast'!M31","v":0},null,{"$f":"+'2. Presupuestar ingresos y gast'!N31","v":0},0]
[{"$f":"+'2. Presupuestar ingresos y gast'!A32","v":" Ocio"},{"$f":"+'2. Presupuestar ingresos y gast'!B32","v":0},null,{"$f":"+'2. Presupuestar ingresos y gast'!C32","v":0},null,{"$f":"+'2. Presupuestar ingresos y gast'!D32","v":0},null,{"$f":"+'2. Presupuestar ingresos y gast'!E32","v":0},null,{"$f":"+'2. Presupuestar ingresos y gast'!F32","v":0},null,{"$f":"+'2. Presupuestar ingresos y gast'!G32","v":0},null,{"$f":"+'2. Presupuestar ingresos y gast'!H32","v":0},null,{"$f":"+'2. Presupuestar ingresos y gast'!I32","v":0},null,{"$f":"+'2. Presupuestar ingresos y gast'!J32","v":0},null,{"$f":"+'2. Presupuestar ingresos y gast'!K32","v":0},null,{"$f":"+'2. Presupuestar ingresos y gast'!L32","v":0},null,{"$f":"+'2. Presupuestar ingresos y gast'!M32","v":0},null,{"$f":"+'2. Presupuestar ingresos y gast'!N32","v":0},0]
[{"$f":"+'2. Presupuestar ingresos y gast'!A33","v":"Deudas"},{"$f":"+'2. Presupuestar ingresos y gast'!B33","v":0},null,{"$f":"+'2. Presupuestar ingresos y gast'!C33","v":0},null,{"$f":"+'2. Presupuestar ingresos y gast'!D33","v":0},null,{"$f":"+'2. Presupuestar ingresos y gast'!E33","v":0},null,{"$f":"+'2. Presupuestar ingresos y gast'!F33","v":0},null,{"$f":"+'2. Presupuestar ingresos y gast'!G33","v":0},null,{"$f":"+'2. Presupuestar ingresos y gast'!H33","v":0},null,{"$f":"+'2. Presupuestar ingresos y gast'!I33","v":0},null,{"$f":"+'2. Presupuestar ingresos y gast'!J33","v":0},null,{"$f":"+'2. Presupuestar ingresos y gast'!K33","v":0},null,{"$f":"+'2. Presupuestar ingresos y gast'!L33","v":0},null,{"$f":"+'2. Presupuestar ingresos y gast'!M33","v":0},null,{"$f":"+'2. Presupuestar ingresos y gast'!N33","v":0},0]
[{"$f":"+'2. Presupuestar ingresos y gast'!A34","v":"Seguros"},{"$f":"+'2. Presupuestar ingresos y gast'!B34","v":0},null,{"$f":"+'2. Presupuestar ingresos y gast'!C34","v":0},null,{"$f":"+'2. Presupuestar ingresos y gast'!D34","v":0},null,{"$f":"+'2. Presupuestar ingresos y gast'!E34","v":0},null,{"$f":"+'2. Presupuestar ingresos y gast'!F34","v":0},null,{"$f":"+'2. Presupuestar ingresos y gast'!G34","v":0},null,{"$f":"+'2. Presupuestar ingresos y gast'!H34","v":0},null,{"$f":"+'2. Presupuestar ingresos y gast'!I34","v":0},null,{"$f":"+'2. Presupuestar ingresos y gast'!J34","v":0},null,{"$f":"+'2. Presupuestar ingresos y gast'!K34","v":0},null,{"$f":"+'2. Presupuestar ingresos y gast'!L34","v":0},null,{"$f":"+'2. Presupuestar ingresos y gast'!M34","v":0},null,{"$f":"+'2. Presupuestar ingresos y gast'!N34","v":0},0]
[{"$f":"+'2. Presupuestar ingresos y gast'!A35","v":"Impuestos"},{"$f":"+'2. Presupuestar ingresos y gast'!B35","v":0},null,{"$f":"+'2. Presupuestar ingresos y gast'!C35","v":0},null,{"$f":"+'2. Presupuestar ingresos y gast'!D35","v":0},null,{"$f":"+'2. Presupuestar ingresos y gast'!E35","v":0},null,{"$f":"+'2. Presupuestar ingresos y gast'!F35","v":0},null,{"$f":"+'2. Presupuestar ingresos y gast'!G35","v":0},null,{"$f":"+'2. Presupuestar ingresos y gast'!H35","v":0},null,{"$f":"+'2. Presupuestar ingresos y gast'!I35","v":0},null,{"$f":"+'2. Presupuestar ingresos y gast'!J35","v":0},null,{"$f":"+'2. Presupuestar ingresos y gast'!K35","v":0},null,{"$f":"+'2. Presupuestar ingresos y gast'!L35","v":0},null,{"$f":"+'2. Presupuestar ingresos y gast'!M35","v":0},null,{"$f":"+'2. Presupuestar ingresos y gast'!N35","v":0},0]
[{"$f":"+'2. Presupuestar ingresos y gast'!A36","v":"Gastos varios"},{"$f":"+'2. Presupuestar ingresos y gast'!B36","v":0},null,{"$f":"+'2. Presupuestar ingresos y gast'!C36","v":0},null,{"$f":"+'2. Presupuestar ingresos y gast'!D36","v":0},null,{"$f":"+'2. Presupuestar ingresos y gast'!E36","v":0},null,{"$f":"+'2. Presupuestar ingresos y gast'!F36","v":0},null,{"$f":"+'2. Presupuestar ingresos y gast'!G36","v":0},null,{"$f":"+'2. Presupuestar ingresos y gast'!H36","v":0},null,{"$f":"+'2. Presupuestar ingresos y gast'!I36","v":0},null,{"$f":"+'2. Presupuestar ingresos y gast'!J36","v":0},null,{"$f":"+'2. Presupuestar ingresos y gast'!K36","v":0},null,{"$f":"+'2. Presupuestar ingresos y gast'!L36","v":0},null,{"$f":"+'2. Presupuestar ingresos y gast'!M36","v":0},null,{"$f":"+'2. Presupuestar ingresos y gast'!N36","v":0},0]
[null,1,null,2,null,3,null,4,null,5,null,6,null,7,null,8,null,9,null,10,null,11,null,12]
[null,null,1,null,2,null,3,null,4,null,5,null,6,null,7,null,8,null,9,null,10,null,11,null,12]
["IMPREVISTOS",{"$f":"+'2. Presupuestar ingresos y gast'!B38","v":0},null,{"$f":"+'2. Presupuestar ingresos y gast'!C38","v":0},null,{"$f":"+'2. Presupuestar ingresos y gast'!D38","v":0},null,{"$f":"+'2. Presupuestar ingresos y gast'!E38","v":0},null,{"$f":"+'2. Presupuestar ingresos y gast'!F38","v":0},null,{"$f":"+'2. Presupuestar ingresos y gast'!G38","v":0},null,{"$f":"+'2. Presupuestar ingresos y gast'!H38","v":0},null,{"$f":"+'2. Presupuestar ingresos y gast'!I38","v":0},null,{"$f":"+'2. Presupuestar ingresos y gast'!J38","v":0},null,{"$f":"+'2. Presupuestar ingresos y gast'!K38","v":0},null,{"$f":"+'2. Presupuestar ingresos y gast'!L38","v":0},null,{"$f":"+'2. Presupuestar ingresos y gast'!M38","v":0},null,{"$f":"+'2. Presupuestar ingresos y gast'!N38","v":0},0]
[{"$f":"+'2. Presupuestar ingresos y gast'!$A$39","v":"VACACIONES"},{"$f":"+'2. Presupuestar ingresos y gast'!B39","v":0},null,{"$f":"+'2. Presupuestar ingresos y gast'!C39","v":"0"},null,{"$f":"+'2. Presupuestar ingresos y gast'!D39","v":"0"},null,{"$f":"+'2. Presupuestar ingresos y gast'!E39","v":"0"},null,{"$f":"+'2. Presupuestar ingresos y gast'!J39","v":"0"},null,{"$f":"+'2. Presupuestar ingresos y gast'!G39","v":"0"},null,{"$f":"+'2. Presupuestar ingresos y gast'!H39","v":"0"},null,{"$f":"+'2. Presupuestar ingresos y gast'!I39","v":"0"},null,{"$f":"+'2. Presupuestar ingresos y gast'!J39","v":"0"},null,{"$f":"+'2. Presupuestar ingresos y gast'!K39","v":"0"},null,{"$f":"+'2. Presupuestar ingresos y gast'!L39","v":"0"},null,{"$f":"+'2. Presupuestar ingresos y gast'!M39","v":"0"},null,{"$f":"+'2. Presupuestar ingresos y gast'!N39","v":0},0]
["COMPRA IMPORTANTE",{"$f":"+'2. Presupuestar ingresos y gast'!B40","v":0},null,{"$f":"+'2. Presupuestar ingresos y gast'!C40","v":"0"},null,{"$f":"+'2. Presupuestar ingresos y gast'!D40","v":"0"},null,{"$f":"+'2. Presupuestar ingresos y gast'!E40","v":"0"},null,{"$f":"+'2. Presupuestar ingresos y gast'!J40","v":"0"},null,{"$f":"+'2. Presupuestar ingresos y gast'!G40","v":"0"},null,{"$f":"+'2. Presupuestar ingresos y gast'!H40","v":"0"},null,{"$f":"+'2. Presupuestar ingresos y gast'!I40","v":"0"},null,{"$f":"+'2. Presupuestar ingresos y gast'!J40","v":"0"},null,{"$f":"+'2. Presupuestar ingresos y gast'!K40","v":"0"},null,{"$f":"+'2. Presupuestar ingresos y gast'!L40","v":"0"},null,{"$f":"+'2. Presupuestar ingresos y gast'!M40","v":"0"},null,{"$f":"+'2. Presupuestar ingresos y gast'!N40","v":0},0]
[]
["AHORRO",{"$f":"+'2. Presupuestar ingresos y gast'!B43","v":0},null,{"$f":"+'2. Presupuestar ingresos y gast'!C43","v":0},null,{"$f":"+'2. Presupuestar ingresos y gast'!D43","v":0},null,{"$f":"+'2. Presupuestar ingresos y gast'!E43","v":0},null,{"$f":"+'2. Presupuestar ingresos y gast'!F43","v":0},null,{"$f":"+'2. Presupuestar ingresos y gast'!G43","v":0},null,{"$f":"+'2. Presupuestar ingresos y gast'!H43","v":0},null,{"$f":"+'2. Presupuestar ingresos y gast'!I43","v":0},null,{"$f":"+'2. Presupuestar ingresos y gast'!J43","v":0},null,{"$f":"+'2. Presupuestar ingresos y gast'!K43","v":0},null,{"$f":"+'2. Presupuestar ingresos y gast'!L43","v":0},null,{"$f":"+'2. Presupuestar ingresos y gast'!M43","v":0},null,{"$f":"+'2. Presupuestar ingresos y gast'!N43","v":0},{"$f":"AA21-AA30-AA43","v":0}]
[]
["EFECTIVO DISPONIBLE EN EL MES",{"$f":"+'2. Presupuestar ingresos y gast'!B45","v":0},{"$f":"+C16+C21-C30-C43-C47-C44-C45","v":0},{"$f":"+'2. Presupuestar ingresos y gast'!C45","v":0},{"$f":"+C16+C21-C30-C43-C47-C44-C45","v":0},{"$f":"+'2. Presupuestar ingresos y gast'!D45","v":0},{"$f":"+C16+C21-C30-C43-C47-C44-C45","v":0},{"$f":"+'2. Presupuestar ingresos y gast'!E45","v":0},{"$f":"+C16+C21-C30-C43-C47-C44-C45","v":0},{"$f":"+'2. Presupuestar ingresos y gast'!F45","v":0},{"$f":"+C16+C21-C30-C43-C47-C44-C45","v":0},{"$f":"+'2. Presupuestar ingresos y gast'!G45","v":0},{"$f":"+C16+C21-C30-C43-C47-C44-C45","v":0},{"$f":"+'2. Presupuestar ingresos y gast'!H45","v":0},{"$f":"+C16+C21-C30-C43-C47-C44-C45","v":0},{"$f":"+'2. Presupuestar ingresos y gast'!I45","v":0},{"$f":"+C16+C21-C30-C43-C47-C44-C45","v":0},{"$f":"+'2. Presupuestar ingresos y gast'!J45","v":0},{"$f":"+C16+C21-C30-C43-C47-C44-C45","v":0},{"$f":"+'2. Presupuestar ingresos y gast'!K45","v":0},{"$f":"+C16+C21-C30-C43-C47-C44-C45","v":0},{"$f":"+'2. Presupuestar ingresos y gast'!L45","v":0},{"$f":"+C16+C21-C30-C43-C47-C44-C45","v":0},{"$f":"+'2. Presupuestar ingresos y gast'!M45","v":0},{"$f":"+C16+C21-C30-C43-C47-C44-C45","v":0},{"$f":"+'2. Presupuestar ingresos y gast'!N45","v":0},{"$f":"AA21-AA30-AA43+AA47","v":0}]
[]
["EFECTIVO DISPONIBLE ACUMULADO",{"$f":"+'2. Presupuestar ingresos y gast'!B47","v":0},{"$f":"C49","v":0},{"$f":"+'2. Presupuestar ingresos y gast'!C47","v":0},{"$f":"E49+C51","v":0},{"$f":"+'2. Presupuestar ingresos y gast'!D47","v":0},{"$f":"G49+E51","v":0},{"$f":"+'2. Presupuestar ingresos y gast'!E47","v":0},{"$f":"I49+G51","v":0},{"$f":"+'2. Presupuestar ingresos y gast'!F47","v":0},{"$f":"K49+I51","v":0},{"$f":"+'2. Presupuestar ingresos y gast'!G47","v":0},{"$f":"M49+K51","v":0},{"$f":"+'2. Presupuestar ingresos y gast'!H47","v":0},{"$f":"O49+M51","v":0},{"$f":"+'2. Presupuestar ingresos y gast'!I47","v":0},{"$f":"Q49+O51","v":0},{"$f":"+'2. Presupuestar ingresos y gast'!J47","v":0},{"$f":"S49+Q51","v":0},{"$f":"+'2. Presupuestar ingresos y gast'!K47","v":0},{"$f":"U49+S51","v":0},{"$f":"+'2. Presupuestar ingresos y gast'!L47","v":0},{"$f":"W49+U51","v":0},{"$f":"+'2. Presupuestar ingresos y gast'!M47","v":0},{"$f":"Y49+W51","v":0},{"$f":"+'2. Presupuestar ingresos y gast'!O47","v":0},{"$f":"AA49+Y51","v":0}]

{"sheet":"Calculo Desvíos","index":5,"n_rows":38,"n_cols":14,"rows_kept":38,"cut":false,"hidden":false,"merged":[]}
[]
[]
[]
[]
[]
[]
[]
["CALCULO DE DESVIOS MENSUALES"]
[]
[]
[null,"Mes 1","Mes 2","Mes 3","Mes 4","Mes 5","Mes 6","Mes 7","Mes 8","Mes 9","Mes 10","Mes 11","Mes 12","Total anual"]
["INGRESOS",{"$f":"SUM(B13:B18)","v":0},{"$f":"SUM(C13:C18)","v":0},0,0,0,0,0,0,0,0,0,0,{"$f":"SUM(B12:M12)","v":0}]
[{"$f":"+'2. Presupuestar ingresos y gast'!A19","v":"Sueldo 1"},{"$f":"+'3. Cargar datos reales'!C22-'3. Cargar datos reales'!B22","v":0},{"$f":"+'3. Cargar datos reales'!E22-'3. Cargar datos reales'!D22","v":0},{"$f":"+'3. Cargar datos reales'!G22-'3. Cargar datos reales'!F22","v":0},{"$f":"+'3. Cargar datos reales'!I22-'3. Cargar datos reales'!H22","v":0},{"$f":"+'3. Cargar datos reales'!K22-'3. Cargar datos reales'!J22","v":0},{"$f":"+'3. Cargar datos reales'!M22-'3. Cargar datos reales'!L22","v":0},{"$f":"+'3. Cargar datos reales'!O22-'3. Cargar datos reales'!N22","v":0},{"$f":"+'3. Cargar datos reales'!Q22-'3. Cargar datos reales'!P22","v":0},{"$f":"+'3. Cargar datos reales'!S22-'3. Cargar datos reales'!R22","v":0},{"$f":"+'3. Cargar datos reales'!U22-'3. Cargar datos reales'!T22","v":0},{"$f":"+'3. Cargar datos reales'!W22-'3. Cargar datos reales'!V22","v":0},{"$f":"+'3. Cargar datos reales'!Y22-'3. Cargar datos reales'!X22","v":0},{"$f":"'3. Cargar datos reales'!AA22-'3. Cargar datos reales'!Z22","v":0}]
[{"$f":"+'2. Presupuestar ingresos y gast'!A20","v":"Sueldo 2"},{"$f":"+'3. Cargar datos reales'!C23-'3. Cargar datos reales'!B23","v":0},{"$f":"+'3. Cargar datos reales'!E23-'3. Cargar datos reales'!D23","v":0},{"$f":"+'3. Cargar datos reales'!G23-'3. Cargar datos reales'!F23","v":0},{"$f":"+'3. Cargar datos reales'!I23-'3. Cargar datos reales'!H23","v":0},{"$f":"+'3. Cargar datos reales'!K23-'3. Cargar datos reales'!J23","v":0},{"$f":"+'3. Cargar datos reales'!M23-'3. Cargar datos reales'!L23","v":0},{"$f":"+'3. Cargar datos reales'!O23-'3. Cargar datos reales'!N23","v":0},{"$f":"+'3. Cargar datos reales'!Q23-'3. Cargar datos reales'!P23","v":0},{"$f":"+'3. Cargar datos reales'!S23-'3. Cargar datos reales'!R23","v":0},{"$f":"+'3. Cargar datos reales'!U23-'3. Cargar datos reales'!T23","v":0},{"$f":"+'3. Cargar datos reales'!W23-'3. Cargar datos reales'!V23","v":0},{"$f":"+'3. Cargar datos reales'!Y23-'3. Cargar datos reales'!X23","v":0},{"$f":"'3. Cargar datos reales'!AA23-'3. Cargar datos reales'!Z23","v":0}]
[{"$f":"+'2. Presupuestar ingresos y gast'!A21","v":"Horas extras"},{"$f":"+'3. Cargar datos reales'!C24-'3. Cargar datos reales'!B24","v":0},{"$f":"+'3. Cargar datos reales'!E24-'3. Cargar datos reales'!D24","v":0},{"$f":"+'3. Cargar datos reales'!G24-'3. Cargar datos reales'!F24","v":0},{"$f":"+'3. Cargar datos reales'!I24-'3. Cargar datos reales'!H24","v":0},{"$f":"+'3. Cargar datos reales'!K24-'3. Cargar datos reales'!J24","v":0},{"$f":"+'3. Cargar datos reales'!M24-'3. Cargar datos reales'!L24","v":0},{"$f":"+'3. Cargar datos reales'!O24-'3. Cargar datos reales'!N24","v":0},{"$f":"+'3. Cargar datos reales'!Q24-'3. Cargar datos reales'!P24","v":0},{"$f":"+'3. Cargar datos reales'!S24-'3. Cargar datos reales'!R24","v":0},{"$f":"+'3. Cargar datos reales'!U24-'3. Cargar datos reales'!T24","v":0},{"$f":"+'3. Cargar datos reales'!W24-'3. Cargar datos reales'!V24","v":0},{"$f":"+'3. Cargar datos reales'!Y24-'3. Cargar datos reales'!X24","v":0},{"$f":"'3. Cargar datos reales'!AA24-'3. Cargar datos reales'!Z24","v":0}]
[{"$f":"+'2. Presupuestar ingresos y gast'!A22","v":"Ingresos por inversiones"},{"$f":"+'3. Cargar datos reales'!C25-'3. Cargar datos reales'!B25","v":0},{"$f":"+'3. Cargar datos reales'!E25-'3. Cargar datos reales'!D25","v":0},{"$f":"+'3. Cargar datos reales'!G25-'3. Cargar datos reales'!F25","v":0},{"$f":"+'3. Cargar datos reales'!I25-'3. Cargar datos reales'!H25","v":0},{"$f":"+'3. Cargar datos reales'!K25-'3. Cargar datos reales'!J25","v":0},{"$f":"+'3. Cargar datos reales'!M25-'3. Cargar datos reales'!L25","v":0},{"$f":"+'3. Cargar datos reales'!O25-'3. Cargar datos reales'!N25","v":0},{"$f":"+'3. Cargar datos reales'!Q25-'3. Cargar datos reales'!P25","v":0},{"$f":"+'3. Cargar datos reales'!S25-'3. Cargar datos reales'!R25","v":0},{"$f":"+'3. Cargar datos reales'!U25-'3. Cargar datos reales'!T25","v":0},{"$f":"+'3. Cargar datos reales'!W25-'3. Cargar datos reales'!V25","v":0},{"$f":"+'3. Cargar datos reales'!Y25-'3. Cargar datos reales'!X25","v":0},{"$f":"'3. Cargar datos reales'!AA25-'3. Cargar datos reales'!Z25","v":0}]
[{"$f":"+'2. Presupuestar ingresos y gast'!A23","v":"Ingresos por alquileres"},{"$f":"+'3. Cargar datos reales'!C26-'3. Cargar datos reales'!B26","v":0},{"$f":"+'3. Cargar datos reales'!E26-'3. Cargar datos reales'!D26","v":0},{"$f":"+'3. Cargar datos reales'!G26-'3. Cargar datos reales'!F26","v":0},{"$f":"+'3. Cargar datos reales'!I26-'3. Cargar datos reales'!H26","v":0},{"$f":"+'3. Cargar datos reales'!K26-'3. Cargar datos reales'!J26","v":0},{"$f":"+'3. Cargar datos reales'!M26-'3. Cargar datos reales'!L26","v":0},{"$f":"+'3. Cargar datos reales'!O26-'3. Cargar datos reales'!N26","v":0},{"$f":"+'3. Cargar datos reales'!Q26-'3. Cargar datos reales'!P26","v":0},{"$f":"+'3. Cargar datos reales'!S26-'3. Cargar datos reales'!R26","v":0},{"$f":"+'3. Cargar datos reales'!U26-'3. Cargar datos reales'!T26","v":0},{"$f":"+'3. Cargar datos reales'!W26-'3. Cargar datos reales'!V26","v":0},{"$f":"+'3. Cargar datos reales'!Y26-'3. Cargar datos reales'!X26","v":0},{"$f":"'3. Cargar datos reales'!AA25-'3. Cargar datos reales'!Z25","v":0}]
[{"$f":"+'2. Presupuestar ingresos y gast'!A24","v":"Otros ingresos"},{"$f":"+'3. Cargar datos reales'!C27-'3. Cargar datos reales'!B27","v":0},{"$f":"+'3. Cargar datos reales'!E27-'3. Cargar datos reales'!D27","v":0},{"$f":"+'3. Cargar datos reales'!G27-'3. Cargar datos reales'!F27","v":0},{"$f":"+'3. Cargar datos reales'!I27-'3. Cargar datos reales'!H27","v":0},{"$f":"+'3. Cargar datos reales'!K27-'3. Cargar datos reales'!J27","v":0},{"$f":"+'3. Cargar datos reales'!M27-'3. Cargar datos reales'!L27","v":0},{"$f":"+'3. Cargar datos reales'!O27-'3. Cargar datos reales'!N27","v":0},{"$f":"+'3. Cargar datos reales'!Q27-'3. Cargar datos reales'!P27","v":0},{"$f":"+'3. Cargar datos reales'!S27-'3. Cargar datos reales'!R27","v":0},{"$f":"+'3. Cargar datos reales'!U27-'3. Cargar datos reales'!T27","v":0},{"$f":"+'3. Cargar datos reales'!W27-'3. Cargar datos reales'!V27","v":0},{"$f":"+'3. Cargar datos reales'!Y27-'3. Cargar datos reales'!X27","v":0},{"$f":"'3. Cargar datos reales'!AA26-'3. Cargar datos reales'!Z26","v":0}]
[]
["GASTOS",{"$f":"SUM(B21:B30)","v":0},{"$f":"SUM(C21:C30)","v":0},0,0,0,0,0,0,0,0,0,0,{"$f":"'3. Cargar datos reales'!AA30-'3. Cargar datos reales'!Z30","v":0}]
[{"$f":"+'2. Presupuestar ingresos y gast'!A27","v":"Hogar"},{"$f":"-('3. Cargar datos reales'!C31-'3. Cargar datos reales'!B31)","v":0},{"$f":"-('3. Cargar datos reales'!E31-'3. Cargar datos reales'!D31)","v":0},{"$f":"-('3. Cargar datos reales'!G31-'3. Cargar datos reales'!F31)","v":0},{"$f":"-('3. Cargar datos reales'!I31-'3. Cargar datos reales'!H31)","v":0},{"$f":"-('3. Cargar datos reales'!K31-'3. Cargar datos reales'!J31)","v":0},{"$f":"-('3. Cargar datos reales'!M31-'3. Cargar datos reales'!L31)","v":0},{"$f":"-('3. Cargar datos reales'!O31-'3. Cargar datos reales'!N31)","v":0},{"$f":"-('3. Cargar datos reales'!Q31-'3. Cargar datos reales'!P31)","v":0},{"$f":"-('3. Cargar datos reales'!S31-'3. Cargar datos reales'!R31)","v":0},{"$f":"-('3. Cargar datos reales'!U31-'3. Cargar datos reales'!T31)","v":0},{"$f":"-('3. Cargar datos reales'!W31-'3. Cargar datos reales'!V31)","v":0},{"$f":"-('3. Cargar datos reales'!Y31-'3. Cargar datos reales'!X31)","v":0},{"$f":"'3. Cargar datos reales'!AA31-'3. Cargar datos reales'!Z31","v":0}]
[{"$f":"+'2. Presupuestar ingresos y gast'!A28","v":"Salud"},{"$f":"-('3. Cargar datos reales'!C32-'3. Cargar datos reales'!B32)","v":0},{"$f":"-('3. Cargar datos reales'!E32-'3. Cargar datos reales'!D32)","v":0},{"$f":"-('3. Cargar datos reales'!G32-'3. Cargar datos reales'!F32)","v":0},{"$f":"-('3. Cargar datos reales'!I32-'3. Cargar datos reales'!H32)","v":0},{"$f":"-('3. Cargar datos reales'!K32-'3. Cargar datos reales'!J32)","v":0},{"$f":"-('3. Cargar datos reales'!M32-'3. Cargar datos reales'!L32)","v":0},{"$f":"-('3. Cargar datos reales'!O32-'3. Cargar datos reales'!N32)","v":0},{"$f":"-('3. Cargar datos reales'!Q32-'3. Cargar datos reales'!P32)","v":0},{"$f":"-('3. Cargar datos reales'!S32-'3. Cargar datos reales'!R32)","v":0},{"$f":"-('3. Cargar datos reales'!U32-'3. Cargar datos reales'!T32)","v":0},{"$f":"-('3. Cargar datos reales'!W32-'3. Cargar datos reales'!V32)","v":0},{"$f":"-('3. Cargar datos reales'!Y32-'3. Cargar datos reales'!X32)","v":0},{"$f":"'3. Cargar datos reales'!AA32-'3. Cargar datos reales'!Z32","v":0}]
[{"$f":"+'2. Presupuestar ingresos y gast'!A29","v":"Educación"},{"$f":"-('3. Cargar datos reales'!C33-'3. Cargar datos reales'!B33)","v":0},{"$f":"-('3. Cargar datos reales'!E33-'3. Cargar datos reales'!D33)","v":0},{"$f":"-('3. Cargar datos reales'!G33-'3. Cargar datos reales'!F33)","v":0},{"$f":"-('3. Cargar datos reales'!I33-'3. Cargar datos reales'!H33)","v":0},{"$f":"-('3. Cargar datos reales'!K33-'3. Cargar datos reales'!J33)","v":0},{"$f":"-('3. Cargar datos reales'!M33-'3. Cargar datos reales'!L33)","v":0},{"$f":"-('3. Cargar datos reales'!O33-'3. Cargar datos reales'!N33)","v":0},{"$f":"-('3. Cargar datos reales'!Q33-'3. Cargar datos reales'!P33)","v":0},{"$f":"-('3. Cargar datos reales'!S33-'3. Cargar datos reales'!R33)","v":0},{"$f":"-('3. Cargar datos reales'!U33-'3. Cargar datos reales'!T33)","v":0},{"$f":"-('3. Cargar datos reales'!W33-'3. Cargar datos reales'!V33)","v":0},{"$f":"-('3. Cargar datos reales'!Y33-'3. Cargar datos reales'!X33)","v":0},{"$f":"'3. Cargar datos reales'!AA33-'3. Cargar datos reales'!Z33","v":0}]
[{"$f":"+'2. Presupuestar ingresos y gast'!A30","v":"Transporte"},{"$f":"-('3. Cargar datos reales'!C34-'3. Cargar datos reales'!B34)","v":0},{"$f":"-('3. Cargar datos reales'!E34-'3. Cargar datos reales'!D34)","v":0},{"$f":"-('3. Cargar datos reales'!G34-'3. Cargar datos reales'!F34)","v":0},{"$f":"-('3. Cargar datos reales'!I34-'3. Cargar datos reales'!H34)","v":0},{"$f":"-('3. Cargar datos reales'!K34-'3. Cargar datos reales'!J34)","v":0},{"$f":"-('3. Cargar datos reales'!M34-'3. Cargar datos reales'!L34)","v":0},{"$f":"-('3. Cargar datos reales'!O34-'3. Cargar datos reales'!N34)","v":0},{"$f":"-('3. Cargar datos reales'!Q34-'3. Cargar datos reales'!P34)","v":0},{"$f":"-('3. Cargar datos reales'!S34-'3. Cargar datos reales'!R34)","v":0},{"$f":"-('3. Cargar datos reales'!U34-'3. Cargar datos reales'!T34)","v":0},{"$f":"-('3. Cargar datos reales'!W34-'3. Cargar datos reales'!V34)","v":0},{"$f":"-('3. Cargar datos reales'!Y34-'3. Cargar datos reales'!X34)","v":0},{"$f":"'3. Cargar datos reales'!AA34-'3. Cargar datos reales'!Z34","v":0}]
[{"$f":"+'2. Presupuestar ingresos y gast'!A31","v":"Comida"},{"$f":"-('3. Cargar datos reales'!C35-'3. Cargar datos reales'!B35)","v":0},{"$f":"-('3. Cargar datos reales'!E35-'3. Cargar datos reales'!D35)","v":0},{"$f":"-('3. Cargar datos reales'!G35-'3. Cargar datos reales'!F35)","v":0},{"$f":"-('3. Cargar datos reales'!I35-'3. Cargar datos reales'!H35)","v":0},{"$f":"-('3. Cargar datos reales'!K35-'3. Cargar datos reales'!J35)","v":0},{"$f":"-('3. Cargar datos reales'!M35-'3. Cargar datos reales'!L35)","v":0},{"$f":"-('3. Cargar datos reales'!O35-'3. Cargar datos reales'!N35)","v":0},{"$f":"-('3. Cargar datos reales'!Q35-'3. Cargar datos reales'!P35)","v":0},{"$f":"-('3. Cargar datos reales'!S35-'3. Cargar datos reales'!R35)","v":0},{"$f":"-('3. Cargar datos reales'!U35-'3. Cargar datos reales'!T35)","v":0},{"$f":"-('3. Cargar datos reales'!W35-'3. Cargar datos reales'!V35)","v":0},{"$f":"-('3. Cargar datos reales'!Y35-'3. Cargar datos reales'!X35)","v":0},{"$f":"'3. Cargar datos reales'!AA35-'3. Cargar datos reales'!Z35","v":0}]
[{"$f":"+'2. Presupuestar ingresos y gast'!A32","v":" Ocio"},{"$f":"-('3. Cargar datos reales'!C36-'3. Cargar datos reales'!B36)","v":0},{"$f":"-('3. Cargar datos reales'!E36-'3. Cargar datos reales'!D36)","v":0},{"$f":"-('3. Cargar datos reales'!G36-'3. Cargar datos reales'!F36)","v":0},{"$f":"-('3. Cargar datos reales'!I36-'3. Cargar datos reales'!H36)","v":0},{"$f":"-('3. Cargar datos reales'!K36-'3. Cargar datos reales'!J36)","v":0},{"$f":"-('3. Cargar datos reales'!M36-'3. Cargar datos reales'!L36)","v":0},{"$f":"-('3. Cargar datos reales'!O36-'3. Cargar datos reales'!N36)","v":0},{"$f":"-('3. Cargar datos reales'!Q36-'3. Cargar datos reales'!P36)","v":0},{"$f":"-('3. Cargar datos reales'!S36-'3. Cargar datos reales'!R36)","v":0},{"$f":"-('3. Cargar datos reales'!U36-'3. Cargar datos reales'!T36)","v":0},{"$f":"-('3. Cargar datos reales'!W36-'3. Cargar datos reales'!V36)","v":0},{"$f":"-('3. Cargar datos reales'!Y36-'3. Cargar datos reales'!X36)","v":0},{"$f":"'3. Cargar datos reales'!AA36-'3. Cargar datos reales'!Z36","v":0}]
[{"$f":"+'2. Presupuestar ingresos y gast'!A33","v":"Deudas"},{"$f":"-('3. Cargar datos reales'!C37-'3. Cargar datos reales'!B37)","v":0},{"$f":"-('3. Cargar datos reales'!E37-'3. Cargar datos reales'!D37)","v":0},{"$f":"-('3. Cargar datos reales'!G37-'3. Cargar datos reales'!F37)","v":0},{"$f":"-('3. Cargar datos reales'!I37-'3. Cargar datos reales'!H37)","v":0},{"$f":"-('3. Cargar datos reales'!K37-'3. Cargar datos reales'!J37)","v":0},{"$f":"-('3. Cargar datos reales'!M37-'3. Cargar datos reales'!L37)","v":0},{"$f":"-('3. Cargar datos reales'!O37-'3. Cargar datos reales'!N37)","v":0},{"$f":"-('3. Cargar datos reales'!Q37-'3. Cargar datos reales'!P37)","v":0},{"$f":"-('3. Cargar datos reales'!S37-'3. Cargar datos reales'!R37)","v":0},{"$f":"-('3. Cargar datos reales'!U37-'3. Cargar datos reales'!T37)","v":0},{"$f":"-('3. Cargar datos reales'!W37-'3. Cargar datos reales'!V37)","v":0},{"$f":"-('3. Cargar datos reales'!Y37-'3. Cargar datos reales'!X37)","v":0},{"$f":"'3. Cargar datos reales'!AA37-'3. Cargar datos reales'!Z37","v":0}]
[{"$f":"+'2. Presupuestar ingresos y gast'!A34","v":"Seguros"},{"$f":"-('3. Cargar datos reales'!C38-'3. Cargar datos reales'!B38)","v":0},{"$f":"-('3. Cargar datos reales'!E38-'3. Cargar datos reales'!D38)","v":0},{"$f":"-('3. Cargar datos reales'!G38-'3. Cargar datos reales'!F38)","v":0},{"$f":"-('3. Cargar datos reales'!I38-'3. Cargar datos reales'!H38)","v":0},{"$f":"-('3. Cargar datos reales'!K38-'3. Cargar datos reales'!J38)","v":0},{"$f":"-('3. Cargar datos reales'!M38-'3. Cargar datos reales'!L38)","v":0},{"$f":"-('3. Cargar datos reales'!O38-'3. Cargar datos reales'!N38)","v":0},{"$f":"-('3. Cargar datos reales'!Q38-'3. Cargar datos reales'!P38)","v":0},{"$f":"-('3. Cargar datos reales'!S38-'3. Cargar datos reales'!R38)","v":0},{"$f":"-('3. Cargar datos reales'!U38-'3. Cargar datos reales'!T38)","v":0},{"$f":"-('3. Cargar datos reales'!W38-'3. Cargar datos reales'!V38)","v":0},{"$f":"-('3. Cargar datos reales'!Y38-'3. Cargar datos reales'!X38)","v":0},{"$f":"'3. Cargar datos reales'!AA38-'3. Cargar datos reales'!Z38","v":0}]
[{"$f":"+'2. Presupuestar ingresos y gast'!A35","v":"Impuestos"},{"$f":"-('3. Cargar datos reales'!C39-'3. Cargar datos reales'!B39)","v":0},{"$f":"-('3. Cargar datos reales'!E39-'3. Cargar datos reales'!D39)","v":0},{"$f":"-('3. Cargar datos reales'!G39-'3. Cargar datos reales'!F39)","v":0},{"$f":"-('3. Cargar datos reales'!I39-'3. Cargar datos reales'!H39)","v":0},{"$f":"-('3. Cargar datos reales'!K39-'3. Cargar datos reales'!J39)","v":0},{"$f":"-('3. Cargar datos reales'!M39-'3. Cargar datos reales'!L39)","v":0},{"$f":"-('3. Cargar datos reales'!O39-'3. Cargar datos reales'!N39)","v":0},{"$f":"-('3. Cargar datos reales'!Q39-'3. Cargar datos reales'!P39)","v":0},{"$f":"-('3. Cargar datos reales'!S39-'3. Cargar datos reales'!R39)","v":0},{"$f":"-('3. Cargar datos reales'!U39-'3. Cargar datos reales'!T39)","v":0},{"$f":"-('3. Cargar datos reales'!W39-'3. Cargar datos reales'!V39)","v":0},{"$f":"-('3. Cargar datos reales'!Y39-'3. Cargar datos reales'!X39)","v":0},{"$f":"'3. Cargar datos reales'!AA39-'3. Cargar datos reales'!Z39","v":0}]
[{"$f":"+'2. Presupuestar ingresos y gast'!A36","v":"Gastos varios"},{"$f":"-('3. Cargar datos reales'!C40-'3. Cargar datos reales'!B40)","v":0},{"$f":"-('3. Cargar datos reales'!E40-'3. Cargar datos reales'!D40)","v":0},{"$f":"-('3. Cargar datos reales'!G40-'3. Cargar datos reales'!F40)","v":0},{"$f":"-('3. Cargar datos reales'!I40-'3. Cargar datos reales'!H40)","v":0},{"$f":"-('3. Cargar datos reales'!K40-'3. Cargar datos reales'!J40)","v":0},{"$f":"-('3. Cargar datos reales'!M40-'3. Cargar datos reales'!L40)","v":0},{"$f":"-('3. Cargar datos reales'!O40-'3. Cargar datos reales'!N40)","v":0},{"$f":"-('3. Cargar datos reales'!Q40-'3. Cargar datos reales'!P40)","v":0},{"$f":"-('3. Cargar datos reales'!S40-'3. Cargar datos reales'!R40)","v":0},{"$f":"-('3. Cargar datos reales'!U40-'3. Cargar datos reales'!T40)","v":0},{"$f":"-('3. Cargar datos reales'!W40-'3. Cargar datos reales'!V40)","v":0},{"$f":"-('3. Cargar datos reales'!Y40-'3. Cargar datos reales'!X40)","v":0},{"$f":"'3. Cargar datos reales'!AA40-'3. Cargar datos reales'!Z40","v":0}]
[]
["IMPREVISTOS",{"$f":"-('3. Cargar datos reales'!C43-'3. Cargar datos reales'!B43)","v":0},{"$f":"-('3. Cargar datos reales'!E43-'3. Cargar datos reales'!D43)","v":0},{"$f":"-('3. Cargar datos reales'!G43-'3. Cargar datos reales'!F43)","v":0},{"$f":"-('3. Cargar datos reales'!I43-'3. Cargar datos reales'!H43)","v":0},{"$f":"-('3. Cargar datos reales'!K43-'3. Cargar datos reales'!J43)","v":0},{"$f":"-('3. Cargar datos reales'!M43-'3. Cargar datos reales'!L43)","v":0},{"$f":"-('3. Cargar datos reales'!O43-'3. Cargar datos reales'!N43)","v":0},{"$f":"-('3. Cargar datos reales'!Q43-'3. Cargar datos reales'!P43)","v":0},{"$f":"-('3. Cargar datos reales'!S43-'3. Cargar datos reales'!R43)","v":0},{"$f":"-('3. Cargar datos reales'!U43-'3. Cargar datos reales'!T43)","v":0},{"$f":"-('3. Cargar datos reales'!W43-'3. Cargar datos reales'!V43)","v":0},{"$f":"-('3. Cargar datos reales'!Y43-'3. Cargar datos reales'!X43)","v":0},{"$f":"'3. Cargar datos reales'!AA43-'3. Cargar datos reales'!Z43","v":0}]
[{"$f":"+'2. Presupuestar ingresos y gast'!$A$39","v":"VACACIONES"},{"$f":"-('3. Cargar datos reales'!C44-'3. Cargar datos reales'!B44)","v":0},{"$f":"-('3. Cargar datos reales'!E44-'3. Cargar datos reales'!D44)","v":0},{"$f":"-('3. Cargar datos reales'!G44-'3. Cargar datos reales'!F44)","v":0},{"$f":"-('3. Cargar datos reales'!I44-'3. Cargar datos reales'!H44)","v":0},{"$f":"-('3. Cargar datos reales'!K44-'3. Cargar datos reales'!J44)","v":0},{"$f":"-('3. Cargar datos reales'!M44-'3. Cargar datos reales'!L44)","v":0},{"$f":"-('3. Cargar datos reales'!O44-'3. Cargar datos reales'!N44)","v":0},{"$f":"-('3. Cargar datos reales'!Q44-'3. Cargar datos reales'!P44)","v":0},{"$f":"-('3. Cargar datos reales'!S44-'3. Cargar datos reales'!R44)","v":0},{"$f":"-('3. Cargar datos reales'!U44-'3. Cargar datos reales'!T44)","v":0},{"$f":"-('3. Cargar datos reales'!W44-'3. Cargar datos reales'!V44)","v":0},{"$f":"-('3. Cargar datos reales'!Y44-'3. Cargar datos reales'!X44)","v":0},{"$f":"'3. Cargar datos reales'!AA44-'3. Cargar datos reales'!Z44","v":0}]
["COMPRA IMPORTANTE",{"$f":"-('3. Cargar datos reales'!C45-'3. Cargar datos reales'!B45)","v":0},{"$f":"-('3. Cargar datos reales'!E45-'3. Cargar datos reales'!D45)","v":0},{"$f":"-('3. Cargar datos reales'!G45-'3. Cargar datos reales'!F45)","v":0},{"$f":"-('3. Cargar datos reales'!I45-'3. Cargar datos reales'!H45)","v":0},{"$f":"-('3. Cargar datos reales'!K45-'3. Cargar datos reales'!J45)","v":0},{"$f":"-('3. Cargar datos reales'!M45-'3. Cargar datos reales'!L45)","v":0},{"$f":"-('3. Cargar datos reales'!O45-'3. Cargar datos reales'!N45)","v":0},{"$f":"-('3. Cargar datos reales'!Q45-'3. Cargar datos reales'!P45)","v":0},{"$f":"-('3. Cargar datos reales'!S45-'3. Cargar datos reales'!R45)","v":0},{"$f":"-('3. Cargar datos reales'!U45-'3. Cargar datos reales'!T45)","v":0},{"$f":"-('3. Cargar datos reales'!W45-'3. Cargar datos reales'!V45)","v":0},{"$f":"-('3. Cargar datos reales'!Y45-'3. Cargar datos reales'!X45)","v":0},{"$f":"'3. Cargar datos reales'!AA45-'3. Cargar datos reales'!Z45","v":0}]
[]
["AHORRO",{"$f":"'3. Cargar datos reales'!C47-'3. Cargar datos reales'!B47","v":0},{"$f":"+'2. Presupuestar ingresos y gast'!C43","v":0},{"$f":"+'2. Presupuestar ingresos y gast'!D43","v":0},{"$f":"+'2. Presupuestar ingresos y gast'!E43","v":0},{"$f":"+'2. Presupuestar ingresos y gast'!F43","v":0},{"$f":"+'2. Presupuestar ingresos y gast'!G43","v":0},{"$f":"+'2. Presupuestar ingresos y gast'!H43","v":0},{"$f":"+'2. Presupuestar ingresos y gast'!I43","v":0},{"$f":"+'2. Presupuestar ingresos y gast'!J43","v":0},{"$f":"+'2. Presupuestar ingresos y gast'!K43","v":0},{"$f":"+'2. Presupuestar ingresos y gast'!L43","v":0},{"$f":"+'2. Presupuestar ingresos y gast'!M43","v":0},{"$f":"+'2. Presupuestar ingresos y gast'!N43","v":0}]
[]
["DESVÍO DEL MES",{"$f":"+B12+B20+B32+B33+B34+B36","v":0},{"$f":"+C12+C20+C32+C33+C34+C36","v":0},0,0,0,0,0,0,0,0,0,0,{"$f":"+'2. Presupuestar ingresos y gast'!N45","v":0}]

{"sheet":"4.Analizar desvíos y gráficos","index":6,"n_rows":140,"n_cols":24,"rows_kept":140,"cut":false,"hidden":false,"merged":[[124,12,124,13],[89,14,89,15],[124,2,124,3],[124,4,124,5],[124,6,124,7],[124,8,124,9],[124,10,124,11],[89,16,89,17],[89,18,89,19],[89,20,89,21],[89,12,89,13],[15,3,15,10],[89,2,89,3],[89,4,89,5],[89,6,89,7],[89,8,89,9],[89,10,89,11],[16,11,16,15]]}
[]
[null,null,null,null,null,null,null,null,null,null,null,null,"       Diseñado por:"]
[]
[]
[]
[]
[]
[null,null,"4. ANALISIS DE DESVIOS ENTRE DATOS PRESUPUESTADOS Y REALES"]
[null,"              Menú Principal",null,null,null,null,null,null,null,null,null,null,null,null,null,2]
[null,null,null,null,null,null,null,null,null,null,null,null,null,null,null,3]
[null,null,null,null,null,null,null,null,null,null,null,null,null,null,null,4]
[null,null,null,null,null,null,null,null,null,null,null,null,null,null,null,5]
[null,null,null,null,null,null,null,null,null,null,null,null,null,null,null,6]
["1. Planificación de Metas Financieras",null,null,null,null,null,null,null,null,null,null,null,null,"Ver Instructivo"]
[null,null,null,null,null,null,null,null,null,null,null,null,null,null,null,8]
[null,"Semáforo",{"$f":"'2. Presupuestar ingresos y gast'!O47","v":0},{"$f":"IF(C16>=0,\"El presupuesto elaborado en el paso 2 le permite alcanzar las metas financieras\",\"El presupuesto elaborado en el paso 2 NO le permite alcanzar las metas financieras.\")","v":"El presupuesto elaborado en el paso 2 le permite alcanzar las metas financieras"},null,null,null,null,null,null,null,"Tips"]
[null,null,null,null,null,null,null,null,null,null,null,"El color de este semáforo le permitirá conocer si los ingresos y gastos presupuestados (es decir, los que usted planificó ganar o pagar) le permiten cumplir con las metas financieras que ha definido en el paso 1."]
["2. Desvíos en Metas Financieras",null,null,null,null,null,null,null,null,null,null,null,null,null,null,11]
[null,null,null,null,null,null,null,null,null,null,null,null,null,null,null,12]
[null,{"$f":"+'1. Definir metas financieras'!E18","v":"Ahorro"},{"$f":"'1. Definir metas financieras'!F18","v":0},"de los ingresos",{"$f":"'3. Cargar datos reales'!AA47/'3. Cargar datos reales'!AA21","v":{"$error":"#DIV/0!"}},{"$f":"IF(E20>=C20,\"Se han cumplido las metas de ahorro.\",IF(AND(E20<C20,E20>=C20/2),\"Insertar precaución\",\"Insertar plan de acción\"))","v":{"$error":"#DIV/0!"}}]
[null,{"$f":"+'1. Definir metas financieras'!E21","v":"Vacaciones"},{"$f":"'1. Definir metas financieras'!F21","v":0},"sueldos"]
[null,{"$f":"+'1. Definir metas financieras'!E24","v":"Imprevistos"},{"$f":"'1. Definir metas financieras'!F24","v":0},"de los gastos"]
[null,{"$f":"+'1. Definir metas financieras'!E27","v":"Compra importante"},{"$f":"'1. Definir metas financieras'!F27","v":0}]
[]
["2. Ingresos anuales presupuestados",null,null,null,null,null,null,null,"Gastos anuales presupuestados"]
[]
[]
[]
[]
[]
[]
[]
[]
[]
[]
[]
[]
[]
[]
[]
[]
[]
["3. Desvíos mensuales en \"EFECTIVO DISPONIBLE\" entre datos presupestados y reales"]
[]
[]
[null,null,null,null,null,null,null,null,null,null,null,"Tips"]
[]
[]
[null,null,null,null,null,null,null,null,null,null,null,"Lo malo son los \"desvíos negativos\" en Efectivo Disponible."]
[]
[null,null,null,null,null,null,null,null,null,null,null,"Un desvío negativo en \"Efectivo disponible\" significa que  "]
[null,null,null,null,null,null,null,null,null,null,null,"tuve ingresos menores o gastos mayores a los ´resupuestados."]
[]
[null,null,null,null,null,null,null,null,null,null,null,"Un desvío positivo en \"Efectivo disponible\" significa que "]
[null,null,null,null,null,null,null,null,null,null,null,"tuve ingresos mayores o gastos menores."]
[]
[]
[]
[]
[]
[]
[]
[]
[]
[]
[]
[]
["4. Desvíos de las Metas Financieras al Mes:",null,null,null,1,"Elegir Mes a analizar"]
[null,null,"Ahorro",null,"Vacaciones",null,"Imprevistos",null,"Compra"]
[null,"Mes","Pre","Real","Pre","Real","Pre","Real","Pre","Real"]
[{"$f":"E68","v":1},null,{"$f":"HLOOKUP(A71,'3. Cargar datos reales'!41:47,7,FALSE)","v":0},{"$f":"HLOOKUP(A71,'3. Cargar datos reales'!42:47,6,FALSE)","v":0},{"$f":"HLOOKUP(A71,'3. Cargar datos reales'!41:44,4,FALSE)","v":0},{"$f":"HLOOKUP(A71,'3. Cargar datos reales'!42:44,3,FALSE)","v":0},{"$f":"HLOOKUP(A71,'3. Cargar datos reales'!41:43,3,FALSE)","v":0},{"$f":"HLOOKUP(A71,'3. Cargar datos reales'!42:43,2,FALSE)","v":0},{"$f":"HLOOKUP(A71,'3. Cargar datos reales'!41:45,5,FALSE)","v":0},{"$f":"HLOOKUP(A71,'3. Cargar datos reales'!42:45,4,FALSE)","v":0}]
[]
[null,null,null,null,null,null,null,null,null,null,null,"Tips"]
[]
[]
[null,null,null,null,null,null,null,null,null,null,null,"Profundizá el análisis de los desvíos mensuales"]
[]
[null,null,null,null,null,null,null,null,null,null,null,"Elegí el número de mes en el que se produce el mayor desvío"]
[null,null,null,null,null,null,null,null,null,null,null,"para analizar sus causas."]
[]
[]
[]
[]
[]
[]
[]
[]
[]
["5. Desvíos  \"Gastos presupuestados\" vs. \"Gastos Reales\" al Mes:",null,null,null,null,null,1,"Elegir Mes a analizar",null,null,null,null,1,2,3,4,5,6,7,8,9,10,11,12]
[null,null,"Hogar",null,"Salud",null,"Educación",null,"Transporte",null,"Comida",null,"Ocio",null,"Deudas",null,"Seguros",null,"Impuestos",null,"Varios"]
[null,"Mes","Pre","Real","Pre","Real","Pre","Real","Pre","Real","Pre","Real","Pre","Real","Pre","Real","Pre","Real","Pre","Real","Pre","Real"]
[{"$f":"G89","v":1},null,{"$f":"HLOOKUP($A$92,'3. Cargar datos reales'!$28:$40,4,FALSE)","v":0},{"$f":"HLOOKUP($A$92,'3. Cargar datos reales'!$29:$40,3,FALSE)","v":0},{"$f":"HLOOKUP($A$92,'3. Cargar datos reales'!$28:$40,5,FALSE)","v":0},{"$f":"HLOOKUP($A$92,'3. Cargar datos reales'!$29:$40,4,FALSE)","v":0},{"$f":"HLOOKUP($A$92,'3. Cargar datos reales'!$28:$40,6,FALSE)","v":0},{"$f":"HLOOKUP($A$92,'3. Cargar datos reales'!$29:$40,5,FALSE)","v":0},{"$f":"HLOOKUP($A$92,'3. Cargar datos reales'!$28:$40,7,FALSE)","v":0},{"$f":"HLOOKUP($A$92,'3. Cargar datos reales'!$29:$40,6,FALSE)","v":0},{"$f":"HLOOKUP($A$92,'3. Cargar datos reales'!$28:$40,8,FALSE)","v":0},{"$f":"HLOOKUP($A$92,'3. Cargar datos reales'!$29:$40,7,FALSE)","v":0},{"$f":"HLOOKUP($A$92,'3. Cargar datos reales'!$28:$40,9,FALSE)","v":0},{"$f":"HLOOKUP($A$92,'3. Cargar datos reales'!$29:$40,8,FALSE)","v":0},{"$f":"HLOOKUP($A$92,'3. Cargar datos reales'!$28:$40,10,FALSE)","v":0},{"$f":"HLOOKUP($A$92,'3. Cargar datos reales'!$29:$40,9,FALSE)","v":0},{"$f":"HLOOKUP($A$92,'3. Cargar datos reales'!$28:$40,11,FALSE)","v":0},{"$f":"HLOOKUP($A$92,'3. Cargar datos reales'!$29:$40,10,FALSE)","v":0},{"$f":"HLOOKUP($A$92,'3. Cargar datos reales'!$28:$40,12,FALSE)","v":0},{"$f":"HLOOKUP($A$92,'3. Cargar datos reales'!$29:$40,11,FALSE)","v":0},{"$f":"HLOOKUP($A$92,'3. Cargar datos reales'!$28:$40,13,FALSE)","v":0},{"$f":"HLOOKUP($A$92,'3. Cargar datos reales'!$29:$40,12,FALSE)","v":0}]
[]
[null,1,{"$f":"SUM('2. Presupuestar ingresos y gast'!$B$27)","v":0},{"$f":"'3. Cargar datos reales'!$C31","v":0},{"$f":"SUM('2. Presupuestar ingresos y gast'!$B$28)","v":0},{"$f":"'3. Cargar datos reales'!$C32","v":0},{"$f":"SUM('2. Presupuestar ingresos y gast'!$B$29)","v":0},{"$f":"'3. Cargar datos reales'!$C33","v":0},{"$f":"SUM('2. Presupuestar ingresos y gast'!$B$30)","v":0},{"$f":"'3. Cargar datos reales'!$C34","v":0},{"$f":"SUM('2. Presupuestar ingresos y gast'!$B$31)","v":0},{"$f":"'3. Cargar datos reales'!$C35","v":0},{"$f":"SUM('2. Presupuestar ingresos y gast'!$B$32)","v":0},{"$f":"'3. Cargar datos reales'!$C36","v":0},{"$f":"SUM('2. Presupuestar ingresos y gast'!$B$33)","v":0},{"$f":"'3. Cargar datos reales'!$C37","v":0},{"$f":"SUM('2. Presupuestar ingresos y gast'!$B$34)","v":0},{"$f":"'3. Cargar datos reales'!$C38","v":0},{"$f":"SUM('2. Presupuestar ingresos y gast'!$B$35)","v":0},{"$f":"'3. Cargar datos reales'!$C39","v":0},{"$f":"SUM('2. Presupuestar ingresos y gast'!$B$36)","v":0},{"$f":"'3. Cargar datos reales'!$C40","v":0}]
[null,2,{"$f":"SUM('2. Presupuestar ingresos y gast'!$B$27:C27)","v":0},{"$f":"D94+'3. Cargar datos reales'!$E31","v":0},{"$f":"SUM('2. Presupuestar ingresos y gast'!$B$28:C28)","v":0},{"$f":"F94+'3. Cargar datos reales'!$E32","v":0},{"$f":"SUM('2. Presupuestar ingresos y gast'!$B$29:C29)","v":0},{"$f":"H94+'3. Cargar datos reales'!$E33","v":0},{"$f":"SUM('2. Presupuestar ingresos y gast'!$B$30:C30)","v":0},{"$f":"J94+'3. Cargar datos reales'!$E34","v":0},{"$f":"SUM('2. Presupuestar ingresos y gast'!$B$31:C31)","v":0},{"$f":"L94+'3. Cargar datos reales'!$E35","v":0},{"$f":"SUM('2. Presupuestar ingresos y gast'!$B$32:C32)","v":0},{"$f":"N94+'3. Cargar datos reales'!$E36","v":0},{"$f":"SUM('2. Presupuestar ingresos y gast'!$B$33:C33)","v":0},{"$f":"P94+'3. Cargar datos reales'!$E37","v":0},{"$f":"SUM('2. Presupuestar ingresos y gast'!$B$34:C34)","v":0},{"$f":"R94+'3. Cargar datos reales'!$E38","v":0},{"$f":"SUM('2. Presupuestar ingresos y gast'!$B$35:C35)","v":0},{"$f":"T94+'3. Cargar datos reales'!$E39","v":0},{"$f":"SUM('2. Presupuestar ingresos y gast'!$B$36:C36)","v":0},{"$f":"V94+'3. Cargar datos reales'!$E40","v":0}]
[null,3,{"$f":"SUM('2. Presupuestar ingresos y gast'!$B$27:D27)","v":0},{"$f":"D95+'3. Cargar datos reales'!$G31","v":0},{"$f":"SUM('2. Presupuestar ingresos y gast'!$B$28:D28)","v":0},{"$f":"F95+'3. Cargar datos reales'!$G32","v":0},{"$f":"SUM('2. Presupuestar ingresos y gast'!$B$29:D29)","v":0},{"$f":"H95+'3. Cargar datos reales'!$G33","v":0},{"$f":"SUM('2. Presupuestar ingresos y gast'!$B$30:D30)","v":0},{"$f":"J95+'3. Cargar datos reales'!$G34","v":0},{"$f":"SUM('2. Presupuestar ingresos y gast'!$B$31:D31)","v":0},{"$f":"L95+'3. Cargar datos reales'!$G35","v":0},{"$f":"SUM('2. Presupuestar ingresos y gast'!$B$32:D32)","v":0},{"$f":"N95+'3. Cargar datos reales'!$G36","v":0},{"$f":"SUM('2. Presupuestar ingresos y gast'!$B$33:D33)","v":0},{"$f":"P95+'3. Cargar datos reales'!$G37","v":0},{"$f":"SUM('2. Presupuestar ingresos y gast'!$B$34:D34)","v":0},{"$f":"R95+'3. Cargar datos reales'!$G38","v":0},{"$f":"SUM('2. Presupuestar ingresos y gast'!$B$35:D35)","v":0},{"$f":"T95+'3. Cargar datos reales'!$G39","v":0},{"$f":"SUM('2. Presupuestar ingresos y gast'!$B$36:D36)","v":0},{"$f":"V95+'3. Cargar datos reales'!$G40","v":0}]
[null,4,{"$f":"SUM('2. Presupuestar ingresos y gast'!$B$27:E27)","v":0},{"$f":"D96+'3. Cargar datos reales'!$I31","v":0},{"$f":"SUM('2. Presupuestar ingresos y gast'!$B$28:E28)","v":0},{"$f":"F96+'3. Cargar datos reales'!$I32","v":0},{"$f":"SUM('2. Presupuestar ingresos y gast'!$B$29:E29)","v":0},{"$f":"H96+'3. Cargar datos reales'!$I33","v":0},{"$f":"SUM('2. Presupuestar ingresos y gast'!$B$30:E30)","v":0},{"$f":"J96+'3. Cargar datos reales'!$I34","v":0},{"$f":"SUM('2. Presupuestar ingresos y gast'!$B$31:E31)","v":0},{"$f":"L96+'3. Cargar datos reales'!$I35","v":0},{"$f":"SUM('2. Presupuestar ingresos y gast'!$B$32:E32)","v":0},{"$f":"N96+'3. Cargar datos reales'!$I36","v":0},{"$f":"SUM('2. Presupuestar ingresos y gast'!$B$33:E33)","v":0},{"$f":"P96+'3. Cargar datos reales'!$I37","v":0},{"$f":"SUM('2. Presupuestar ingresos y gast'!$B$34:E34)","v":0},{"$f":"R96+'3. Cargar datos reales'!$I38","v":0},{"$f":"SUM('2. Presupuestar ingresos y gast'!$B$35:E35)","v":0},{"$f":"T96+'3. Cargar datos reales'!$I39","v":0},{"$f":"SUM('2. Presupuestar ingresos y gast'!$B$36:E36)","v":0},{"$f":"V96+'3. Cargar datos reales'!$I40","v":0}]
[null,5,{"$f":"SUM('2. Presupuestar ingresos y gast'!$B$27:F27)","v":0},{"$f":"D97+'3. Cargar datos reales'!$K31","v":0},{"$f":"SUM('2. Presupuestar ingresos y gast'!$B$28:F28)","v":0},{"$f":"F97+'3. Cargar datos reales'!$K32","v":0},{"$f":"SUM('2. Presupuestar ingresos y gast'!$B$29:F29)","v":0},{"$f":"H97+'3. Cargar datos reales'!$K33","v":0},{"$f":"SUM('2. Presupuestar ingresos y gast'!$B$30:F30)","v":0},{"$f":"J97+'3. Cargar datos reales'!$K34","v":0},{"$f":"SUM('2. Presupuestar ingresos y gast'!$B$31:F31)","v":0},{"$f":"L97+'3. Cargar datos reales'!$K35","v":0},{"$f":"SUM('2. Presupuestar ingresos y gast'!$B$32:F32)","v":0},{"$f":"N97+'3. Cargar datos reales'!$K36","v":0},{"$f":"SUM('2. Presupuestar ingresos y gast'!$B$33:F33)","v":0},{"$f":"P97+'3. Cargar datos reales'!$K37","v":0},{"$f":"SUM('2. Presupuestar ingresos y gast'!$B$34:F34)","v":0},{"$f":"R97+'3. Cargar datos reales'!$K38","v":0},{"$f":"SUM('2. Presupuestar ingresos y gast'!$B$35:F35)","v":0},{"$f":"T97+'3. Cargar datos reales'!$K39","v":0},{"$f":"SUM('2. Presupuestar ingresos y gast'!$B$36:F36)","v":0},{"$f":"V97+'3. Cargar datos reales'!$K40","v":0}]
[null,6,{"$f":"SUM('2. Presupuestar ingresos y gast'!$B$27:G27)","v":0},{"$f":"D98+'3. Cargar datos reales'!$M31","v":0},{"$f":"SUM('2. Presupuestar ingresos y gast'!$B$28:G28)","v":0},{"$f":"F98+'3. Cargar datos reales'!$M32","v":0},{"$f":"SUM('2. Presupuestar ingresos y gast'!$B$29:G29)","v":0},{"$f":"H98+'3. Cargar datos reales'!$M33","v":0},{"$f":"SUM('2. Presupuestar ingresos y gast'!$B$30:G30)","v":0},{"$f":"J98+'3. Cargar datos reales'!$M34","v":0},{"$f":"SUM('2. Presupuestar ingresos y gast'!$B$31:G31)","v":0},{"$f":"L98+'3. Cargar datos reales'!$M35","v":0},{"$f":"SUM('2. Presupuestar ingresos y gast'!$B$32:G32)","v":0},{"$f":"N98+'3. Cargar datos reales'!$M36","v":0},{"$f":"SUM('2. Presupuestar ingresos y gast'!$B$33:G33)","v":0},{"$f":"P98+'3. Cargar datos reales'!$M37","v":0},{"$f":"SUM('2. Presupuestar ingresos y gast'!$B$34:G34)","v":0},{"$f":"R98+'3. Cargar datos reales'!$M38","v":0},{"$f":"SUM('2. Presupuestar ingresos y gast'!$B$35:G35)","v":0},{"$f":"T98+'3. Cargar datos reales'!$M39","v":0},{"$f":"SUM('2. Presupuestar ingresos y gast'!$B$36:G36)","v":0},{"$f":"V98+'3. Cargar datos reales'!$M40","v":0}]
[null,7,{"$f":"SUM('2. Presupuestar ingresos y gast'!$B$27:H27)","v":0},{"$f":"D99+'3. Cargar datos reales'!$O31","v":0},{"$f":"SUM('2. Presupuestar ingresos y gast'!$B$28:H28)","v":0},{"$f":"F99+'3. Cargar datos reales'!$O32","v":0},{"$f":"SUM('2. Presupuestar ingresos y gast'!$B$29:H29)","v":0},{"$f":"H99+'3. Cargar datos reales'!$O33","v":0},{"$f":"SUM('2. Presupuestar ingresos y gast'!$B$30:H30)","v":0},{"$f":"J99+'3. Cargar datos reales'!$O34","v":0},{"$f":"SUM('2. Presupuestar ingresos y gast'!$B$31:H31)","v":0},{"$f":"L99+'3. Cargar datos reales'!$O35","v":0},{"$f":"SUM('2. Presupuestar ingresos y gast'!$B$32:H32)","v":0},{"$f":"N99+'3. Cargar datos reales'!$O36","v":0},{"$f":"SUM('2. Presupuestar ingresos y gast'!$B$33:H33)","v":0},{"$f":"P99+'3. Cargar datos reales'!$O37","v":0},{"$f":"SUM('2. Presupuestar ingresos y gast'!$B$34:H34)","v":0},{"$f":"R99+'3. Cargar datos reales'!$O38","v":0},{"$f":"SUM('2. Presupuestar ingresos y gast'!$B$35:H35)","v":0},{"$f":"T99+'3. Cargar datos reales'!$O39","v":0},{"$f":"SUM('2. Presupuestar ingresos y gast'!$B$36:H36)","v":0},{"$f":"V99+'3. Cargar datos reales'!$O40","v":0}]
[null,8,{"$f":"SUM('2. Presupuestar ingresos y gast'!$B$27:I27)","v":0},{"$f":"D100+'3. Cargar datos reales'!$Q31","v":0},{"$f":"SUM('2. Presupuestar ingresos y gast'!$B$28:I28)","v":0},{"$f":"F100+'3. Cargar datos reales'!$Q32","v":0},{"$f":"SUM('2. Presupuestar ingresos y gast'!$B$29:I29)","v":0},{"$f":"H100+'3. Cargar datos reales'!$Q33","v":0},{"$f":"SUM('2. Presupuestar ingresos y gast'!$B$30:I30)","v":0},{"$f":"J100+'3. Cargar datos reales'!$Q34","v":0},{"$f":"SUM('2. Presupuestar ingresos y gast'!$B$31:I31)","v":0},{"$f":"L100+'3. Cargar datos reales'!$Q35","v":0},{"$f":"SUM('2. Presupuestar ingresos y gast'!$B$32:I32)","v":0},{"$f":"N100+'3. Cargar datos reales'!$Q36","v":0},{"$f":"SUM('2. Presupuestar ingresos y gast'!$B$33:I33)","v":0},{"$f":"P100+'3. Cargar datos reales'!$Q37","v":0},{"$f":"SUM('2. Presupuestar ingresos y gast'!$B$34:I34)","v":0},{"$f":"R100+'3. Cargar datos reales'!$Q38","v":0},{"$f":"SUM('2. Presupuestar ingresos y gast'!$B$35:I35)","v":0},{"$f":"T100+'3. Cargar datos reales'!$Q39","v":0},{"$f":"SUM('2. Presupuestar ingresos y gast'!$B$36:I36)","v":0},{"$f":"V100+'3. Cargar datos reales'!$Q40","v":0}]
[null,9,{"$f":"SUM('2. Presupuestar ingresos y gast'!$B$27:J27)","v":0},{"$f":"D101+'3. Cargar datos reales'!$S31","v":0},{"$f":"SUM('2. Presupuestar ingresos y gast'!$B$28:J28)","v":0},{"$f":"F101+'3. Cargar datos reales'!$S32","v":0},{"$f":"SUM('2. Presupuestar ingresos y gast'!$B$29:J29)","v":0},{"$f":"H101+'3. Cargar datos reales'!$S33","v":0},{"$f":"SUM('2. Presupuestar ingresos y gast'!$B$30:J30)","v":0},{"$f":"J101+'3. Cargar datos reales'!$S34","v":0},{"$f":"SUM('2. Presupuestar ingresos y gast'!$B$31:J31)","v":0},{"$f":"L101+'3. Cargar datos reales'!$S35","v":0},{"$f":"SUM('2. Presupuestar ingresos y gast'!$B$32:J32)","v":0},{"$f":"N101+'3. Cargar datos reales'!$S36","v":0},{"$f":"SUM('2. Presupuestar ingresos y gast'!$B$33:J33)","v":0},{"$f":"P101+'3. Cargar datos reales'!$S37","v":0},{"$f":"SUM('2. Presupuestar ingresos y gast'!$B$34:J34)","v":0},{"$f":"R101+'3. Cargar datos reales'!$S38","v":0},{"$f":"SUM('2. Presupuestar ingresos y gast'!$B$35:J35)","v":0},{"$f":"T101+'3. Cargar datos reales'!$S39","v":0},{"$f":"SUM('2. Presupuestar ingresos y gast'!$B$36:J36)","v":0},{"$f":"V101+'3. Cargar datos reales'!$S40","v":0}]
[null,10,{"$f":"SUM('2. Presupuestar ingresos y gast'!$B$27:K27)","v":0},{"$f":"D102+'3. Cargar datos reales'!$U31","v":0},{"$f":"SUM('2. Presupuestar ingresos y gast'!$B$28:K28)","v":0},{"$f":"F102+'3. Cargar datos reales'!$U32","v":0},{"$f":"SUM('2. Presupuestar ingresos y gast'!$B$29:K29)","v":0},{"$f":"H102+'3. Cargar datos reales'!$U33","v":0},{"$f":"SUM('2. Presupuestar ingresos y gast'!$B$30:K30)","v":0},{"$f":"J102+'3. Cargar datos reales'!$U34","v":0},{"$f":"SUM('2. Presupuestar ingresos y gast'!$B$31:K31)","v":0},{"$f":"L102+'3. Cargar datos reales'!$U35","v":0},{"$f":"SUM('2. Presupuestar ingresos y gast'!$B$32:K32)","v":0},{"$f":"N102+'3. Cargar datos reales'!$U36","v":0},{"$f":"SUM('2. Presupuestar ingresos y gast'!$B$33:K33)","v":0},{"$f":"P102+'3. Cargar datos reales'!$U37","v":0},{"$f":"SUM('2. Presupuestar ingresos y gast'!$B$34:K34)","v":0},{"$f":"R102+'3. Cargar datos reales'!$U38","v":0},{"$f":"SUM('2. Presupuestar ingresos y gast'!$B$35:K35)","v":0},{"$f":"T102+'3. Cargar datos reales'!$U39","v":0},{"$f":"SUM('2. Presupuestar ingresos y gast'!$B$36:K36)","v":0},{"$f":"V102+'3. Cargar datos reales'!$U40","v":0}]
[null,11,{"$f":"SUM('2. Presupuestar ingresos y gast'!$B$27:L27)","v":0},{"$f":"D103+'3. Cargar datos reales'!$W31","v":0},{"$f":"SUM('2. Presupuestar ingresos y gast'!$B$28:L28)","v":0},{"$f":"F103+'3. Cargar datos reales'!$W32","v":0},{"$f":"SUM('2. Presupuestar ingresos y gast'!$B$29:L29)","v":0},{"$f":"H103+'3. Cargar datos reales'!$W33","v":0},{"$f":"SUM('2. Presupuestar ingresos y gast'!$B$30:L30)","v":0},{"$f":"J103+'3. Cargar datos reales'!$W34","v":0},{"$f":"SUM('2. Presupuestar ingresos y gast'!$B$31:L31)","v":0},{"$f":"L103+'3. Cargar datos reales'!$W35","v":0},{"$f":"SUM('2. Presupuestar ingresos y gast'!$B$32:L32)","v":0},{"$f":"N103+'3. Cargar datos reales'!$W36","v":0},{"$f":"SUM('2. Presupuestar ingresos y gast'!$B$33:L33)","v":0},{"$f":"P103+'3. Cargar datos reales'!$W37","v":0},{"$f":"SUM('2. Presupuestar ingresos y gast'!$B$34:L34)","v":0},{"$f":"R103+'3. Cargar datos reales'!$W38","v":0},{"$f":"SUM('2. Presupuestar ingresos y gast'!$B$35:L35)","v":0},{"$f":"T103+'3. Cargar datos reales'!$W39","v":0},{"$f":"SUM('2. Presupuestar ingresos y gast'!$B$36:L36)","v":0},{"$f":"V103+'3. Cargar datos reales'!$W40","v":0}]
[null,12,{"$f":"SUM('2. Presupuestar ingresos y gast'!$B$27:M27)","v":0},{"$f":"D104+'3. Cargar datos reales'!$Y31","v":0},{"$f":"SUM('2. Presupuestar ingresos y gast'!$B$28:M28)","v":0},{"$f":"F104+'3. Cargar datos reales'!$Y32","v":0},{"$f":"SUM('2. Presupuestar ingresos y gast'!$B$29:M29)","v":0},{"$f":"H104+'3. Cargar datos reales'!$Y33","v":0},{"$f":"SUM('2. Presupuestar ingresos y gast'!$B$30:M30)","v":0},{"$f":"J104+'3. Cargar datos reales'!$Y34","v":0},{"$f":"SUM('2. Presupuestar ingresos y gast'!$B$31:M31)","v":0},{"$f":"L104+'3. Cargar datos reales'!$Y35","v":0},{"$f":"SUM('2. Presupuestar ingresos y gast'!$B$32:M32)","v":0},{"$f":"N104+'3. Cargar datos reales'!$Y36","v":0},{"$f":"SUM('2. Presupuestar ingresos y gast'!$B$33:M33)","v":0},{"$f":"P104+'3. Cargar datos reales'!$Y37","v":0},{"$f":"SUM('2. Presupuestar ingresos y gast'!$B$34:M34)","v":0},{"$f":"R104+'3. Cargar datos reales'!$Y38","v":0},{"$f":"SUM('2. Presupuestar ingresos y gast'!$B$35:M35)","v":0},{"$f":"T104+'3. Cargar datos reales'!$Y39","v":0},{"$f":"SUM('2. Presupuestar ingresos y gast'!$B$36:M36)","v":0},{"$f":"V104+'3. Cargar datos reales'!$Y40","v":0}]
[]
[]
[]
[]
[]
[]
[]
[]
[]
[]
[]
[]
[]
[]
[]
[]
[]
[]
["6. Desvíos \"Ingresos presupuestados\" vs. \"Ingresos reales\" al Mes",null,null,null,null,null,1,"Elegir Mes a analizar"]
[null,null,"Sueldo 1",null,"Sueldo 2",null,"Horas Extras",null,"Inversiones",null,"Alquileres",null,"Otros"]
[null,"Mes","Pre","Real","Pre","Real","Pre","Real","Pre","Real","Pre","Real","Pre","Real"]
[{"$f":"G124","v":1},null,{"$f":"HLOOKUP($A$127,'3. Cargar datos reales'!$17:$27,6,FALSE)","v":0},{"$f":"HLOOKUP($A$127,'3. Cargar datos reales'!$18:$27,5,FALSE)","v":0},{"$f":"HLOOKUP($A$127,'3. Cargar datos reales'!$17:$27,7,FALSE)","v":0},{"$f":"HLOOKUP($A$127,'3. Cargar datos reales'!$18:$27,6,FALSE)","v":0},{"$f":"HLOOKUP($A$127,'3. Cargar datos reales'!$17:$27,8,FALSE)","v":0},{"$f":"HLOOKUP($A$127,'3. Cargar datos reales'!$18:$27,7,FALSE)","v":0},{"$f":"HLOOKUP($A$127,'3. Cargar datos reales'!$17:$27,9,FALSE)","v":0},{"$f":"HLOOKUP($A$127,'3. Cargar datos reales'!$18:$27,8,FALSE)","v":0},{"$f":"HLOOKUP($A$127,'3. Cargar datos reales'!$17:$27,10,FALSE)","v":0},{"$f":"HLOOKUP($A$127,'3. Cargar datos reales'!$18:$27,9,FALSE)","v":0},{"$f":"HLOOKUP($A$127,'3. Cargar datos reales'!$17:$27,11,FALSE)","v":0},{"$f":"HLOOKUP($A$127,'3. Cargar datos reales'!$18:$27,10,FALSE)","v":0},{"$f":"+M127+K127+I127+G127+E127+C127","v":0},{"$f":"+N127+L127+J127+H127+F127+D127","v":0},{"$f":"+P127-O127","v":0}]
[]
[null,1,{"$f":"SUM('2. Presupuestar ingresos y gast'!$B$19)","v":0},{"$f":"'3. Cargar datos reales'!$C22","v":0},{"$f":"SUM('2. Presupuestar ingresos y gast'!$B$20)","v":0},{"$f":"'3. Cargar datos reales'!$C23","v":0},{"$f":"SUM('2. Presupuestar ingresos y gast'!$B$21)","v":0},{"$f":"'3. Cargar datos reales'!$C24","v":0},{"$f":"SUM('2. Presupuestar ingresos y gast'!$B$22)","v":0},{"$f":"'3. Cargar datos reales'!$C25","v":0},{"$f":"SUM('2. Presupuestar ingresos y gast'!$B$23)","v":0},{"$f":"'3. Cargar datos reales'!$C26","v":0},{"$f":"SUM('2. Presupuestar ingresos y gast'!$B$24)","v":0},{"$f":"'3. Cargar datos reales'!$C27","v":0}]
[null,2,{"$f":"SUM('2. Presupuestar ingresos y gast'!$B$19:C19)","v":0},{"$f":"D129+'3. Cargar datos reales'!$E22","v":0},{"$f":"SUM('2. Presupuestar ingresos y gast'!$B$20:C20)","v":0},{"$f":"F129+'3. Cargar datos reales'!$E23","v":0},{"$f":"SUM('2. Presupuestar ingresos y gast'!$B$21:C21)","v":0},{"$f":"H129+'3. Cargar datos reales'!$E24","v":0},{"$f":"SUM('2. Presupuestar ingresos y gast'!$B22:C$22)","v":0},{"$f":"J129+'3. Cargar datos reales'!$E25","v":0},{"$f":"SUM('2. Presupuestar ingresos y gast'!$B$23:C23)","v":0},{"$f":"L129+'3. Cargar datos reales'!$E26","v":0},{"$f":"SUM('2. Presupuestar ingresos y gast'!$B24:C$24)","v":0},{"$f":"N129+'3. Cargar datos reales'!$E27","v":0}]
[null,3,{"$f":"SUM('2. Presupuestar ingresos y gast'!$B$19:D19)","v":0},{"$f":"D130+'3. Cargar datos reales'!$G22","v":0},{"$f":"SUM('2. Presupuestar ingresos y gast'!$B$20:D20)","v":0},{"$f":"F130+'3. Cargar datos reales'!$G23","v":0},{"$f":"SUM('2. Presupuestar ingresos y gast'!$B$21:D21)","v":0},{"$f":"H130+'3. Cargar datos reales'!$G24","v":0},{"$f":"SUM('2. Presupuestar ingresos y gast'!$B22:D$22)","v":0},{"$f":"J130+'3. Cargar datos reales'!$G25","v":0},{"$f":"SUM('2. Presupuestar ingresos y gast'!$B$23:D23)","v":0},{"$f":"L130+'3. Cargar datos reales'!$G26","v":0},{"$f":"SUM('2. Presupuestar ingresos y gast'!$B24:D$24)","v":0},{"$f":"N130+'3. Cargar datos reales'!$G27","v":0}]
[null,4,{"$f":"SUM('2. Presupuestar ingresos y gast'!$B$19:E19)","v":0},{"$f":"D131+'3. Cargar datos reales'!$I22","v":0},{"$f":"SUM('2. Presupuestar ingresos y gast'!$B$20:E20)","v":0},{"$f":"F131+'3. Cargar datos reales'!$I23","v":0},{"$f":"SUM('2. Presupuestar ingresos y gast'!$B$21:E21)","v":0},{"$f":"H131+'3. Cargar datos reales'!$I24","v":0},{"$f":"SUM('2. Presupuestar ingresos y gast'!$B22:E$22)","v":0},{"$f":"J131+'3. Cargar datos reales'!$I25","v":0},{"$f":"SUM('2. Presupuestar ingresos y gast'!$B$23:E23)","v":0},{"$f":"L131+'3. Cargar datos reales'!$I26","v":0},{"$f":"SUM('2. Presupuestar ingresos y gast'!$B24:E$24)","v":0},{"$f":"N131+'3. Cargar datos reales'!$I27","v":0}]
[null,5,{"$f":"SUM('2. Presupuestar ingresos y gast'!$B$19:F19)","v":0},{"$f":"D132+'3. Cargar datos reales'!$K22","v":0},{"$f":"SUM('2. Presupuestar ingresos y gast'!$B$20:F20)","v":0},{"$f":"F132+'3. Cargar datos reales'!$K23","v":0},{"$f":"SUM('2. Presupuestar ingresos y gast'!$B$21:F21)","v":0},{"$f":"H132+'3. Cargar datos reales'!$K24","v":0},{"$f":"SUM('2. Presupuestar ingresos y gast'!$B22:F$22)","v":0},{"$f":"J132+'3. Cargar datos reales'!$K25","v":0},{"$f":"SUM('2. Presupuestar ingresos y gast'!$B$23:F23)","v":0},{"$f":"L132+'3. Cargar datos reales'!$K26","v":0},{"$f":"SUM('2. Presupuestar ingresos y gast'!$B24:F$24)","v":0},{"$f":"N132+'3. Cargar datos reales'!$K27","v":0}]
[null,6,{"$f":"SUM('2. Presupuestar ingresos y gast'!$B$19:G19)","v":0},{"$f":"D133+'3. Cargar datos reales'!$M22","v":0},{"$f":"SUM('2. Presupuestar ingresos y gast'!$B$20:G20)","v":0},{"$f":"F133+'3. Cargar datos reales'!$M23","v":0},{"$f":"SUM('2. Presupuestar ingresos y gast'!$B$21:G21)","v":0},{"$f":"H133+'3. Cargar datos reales'!$M24","v":0},{"$f":"SUM('2. Presupuestar ingresos y gast'!$B22:G$22)","v":0},{"$f":"J133+'3. Cargar datos reales'!$M25","v":0},{"$f":"SUM('2. Presupuestar ingresos y gast'!$B$23:G23)","v":0},{"$f":"L133+'3. Cargar datos reales'!$M26","v":0},{"$f":"SUM('2. Presupuestar ingresos y gast'!$B24:G$24)","v":0},{"$f":"N133+'3. Cargar datos reales'!$M27","v":0}]
[null,7,{"$f":"SUM('2. Presupuestar ingresos y gast'!$B$19:H19)","v":0},{"$f":"D134+'3. Cargar datos reales'!$O22","v":0},{"$f":"SUM('2. Presupuestar ingresos y gast'!$B$20:H20)","v":0},{"$f":"F134+'3. Cargar datos reales'!$O23","v":0},{"$f":"SUM('2. Presupuestar ingresos y gast'!$B$21:H21)","v":0},{"$f":"H134+'3. Cargar datos reales'!$O24","v":0},{"$f":"SUM('2. Presupuestar ingresos y gast'!$B22:H$22)","v":0},{"$f":"J134+'3. Cargar datos reales'!$O25","v":0},{"$f":"SUM('2. Presupuestar ingresos y gast'!$B$23:H23)","v":0},{"$f":"L134+'3. Cargar datos reales'!$O26","v":0},{"$f":"SUM('2. Presupuestar ingresos y gast'!$B24:H$24)","v":0},{"$f":"N134+'3. Cargar datos reales'!$O27","v":0}]
[null,8,{"$f":"SUM('2. Presupuestar ingresos y gast'!$B$19:I19)","v":0},{"$f":"D135+'3. Cargar datos reales'!$Q22","v":0},{"$f":"SUM('2. Presupuestar ingresos y gast'!$B$20:I20)","v":0},{"$f":"F135+'3. Cargar datos reales'!$Q23","v":0},{"$f":"SUM('2. Presupuestar ingresos y gast'!$B$21:I21)","v":0},{"$f":"H135+'3. Cargar datos reales'!$Q24","v":0},{"$f":"SUM('2. Presupuestar ingresos y gast'!$B22:I$22)","v":0},{"$f":"J135+'3. Cargar datos reales'!$Q25","v":0},{"$f":"SUM('2. Presupuestar ingresos y gast'!$B$23:I23)","v":0},{"$f":"L135+'3. Cargar datos reales'!$Q26","v":0},{"$f":"SUM('2. Presupuestar ingresos y gast'!$B24:I$24)","v":0},{"$f":"N135+'3. Cargar datos reales'!$Q27","v":0}]
[null,9,{"$f":"SUM('2. Presupuestar ingresos y gast'!$B$19:J19)","v":0},{"$f":"D136+'3. Cargar datos reales'!$S22","v":0},{"$f":"SUM('2. Presupuestar ingresos y gast'!$B$20:J20)","v":0},{"$f":"F136+'3. Cargar datos reales'!$S23","v":0},{"$f":"SUM('2. Presupuestar ingresos y gast'!$B$21:J21)","v":0},{"$f":"H136+'3. Cargar datos reales'!$S24","v":0},{"$f":"SUM('2. Presupuestar ingresos y gast'!$B22:J$22)","v":0},{"$f":"J136+'3. Cargar datos reales'!$S25","v":0},{"$f":"SUM('2. Presupuestar ingresos y gast'!$B$23:J23)","v":0},{"$f":"L136+'3. Cargar datos reales'!$S26","v":0},{"$f":"SUM('2. Presupuestar ingresos y gast'!$B24:J$24)","v":0},{"$f":"N136+'3. Cargar datos reales'!$S27","v":0}]
[null,10,{"$f":"SUM('2. Presupuestar ingresos y gast'!$B$19:K19)","v":0},{"$f":"D137+'3. Cargar datos reales'!$U22","v":0},{"$f":"SUM('2. Presupuestar ingresos y gast'!$B$20:K20)","v":0},{"$f":"F137+'3. Cargar datos reales'!$U23","v":0},{"$f":"SUM('2. Presupuestar ingresos y gast'!$B$21:K21)","v":0},{"$f":"H137+'3. Cargar datos reales'!$U24","v":0},{"$f":"SUM('2. Presupuestar ingresos y gast'!$B22:K$22)","v":0},{"$f":"J137+'3. Cargar datos reales'!$U25","v":0},{"$f":"SUM('2. Presupuestar ingresos y gast'!$B$23:K23)","v":0},{"$f":"L137+'3. Cargar datos reales'!$U26","v":0},{"$f":"SUM('2. Presupuestar ingresos y gast'!$B24:K$24)","v":0},{"$f":"N137+'3. Cargar datos reales'!$U27","v":0}]
[null,11,{"$f":"SUM('2. Presupuestar ingresos y gast'!$B$19:L19)","v":0},{"$f":"D138+'3. Cargar datos reales'!$W22","v":0},{"$f":"SUM('2. Presupuestar ingresos y gast'!$B$20:L20)","v":0},{"$f":"F138+'3. Cargar datos reales'!$W23","v":0},{"$f":"SUM('2. Presupuestar ingresos y gast'!$B$21:L21)","v":0},{"$f":"H138+'3. Cargar datos reales'!$W24","v":0},{"$f":"SUM('2. Presupuestar ingresos y gast'!$B22:L$22)","v":0},{"$f":"J138+'3. Cargar datos reales'!$W25","v":0},{"$f":"SUM('2. Presupuestar ingresos y gast'!$B$23:L23)","v":0},{"$f":"L138+'3. Cargar datos reales'!$W26","v":0},{"$f":"SUM('2. Presupuestar ingresos y gast'!$B24:L$24)","v":0},{"$f":"N138+'3. Cargar datos reales'!$W27","v":0}]
[null,12,{"$f":"SUM('2. Presupuestar ingresos y gast'!$B$19:M19)","v":0},{"$f":"D139+'3. Cargar datos reales'!$Y22","v":0},{"$f":"SUM('2. Presupuestar ingresos y gast'!$B$20:M20)","v":0},{"$f":"F139+'3. Cargar datos reales'!$Y23","v":0},{"$f":"SUM('2. Presupuestar ingresos y gast'!$B$21:M21)","v":0},{"$f":"H139+'3. Cargar datos reales'!$Y24","v":0},{"$f":"SUM('2. Presupuestar ingresos y gast'!$B22:M$22)","v":0},{"$f":"J139+'3. Cargar datos reales'!$Y25","v":0},{"$f":"SUM('2. Presupuestar ingresos y gast'!$B$23:M23)","v":0},{"$f":"L139+'3. Cargar datos reales'!$Y26","v":0},{"$f":"SUM('2. Presupuestar ingresos y gast'!$B24:M$24)","v":0},{"$f":"N139+'3. Cargar datos reales'!$Y27","v":0}]